{"text_format":"1","workbook":"xlsx","n_sheets":10,"sheets":["ХВС","ВОВ","ГВС","сравнение тепловых нагрузок","ОТОПЛЕНИЕ","Нормативы ХВС ГВС ВОВ","нормативы ОДН ХВС ГВС","нормативы ХВС бани,полив, скот","нормативы отопление жилые пом.","Нормативы отопление бани"],"not_rendered":{"charts":0,"images":1,"macros":1,"external_links":15,"defined_names":389,"comments":1,"pivot_tables":0},"unopened":[],"bounds":{"document_bytes":16777216,"sheet_cells":100000,"rows_first":2000,"rows_last":500,"rows_between":2000,"halvings":0,"cell_chars":16384,"cell_head_chars":4096},"cells_cut":0,"cells_raw":0,"read":"whole","date_system":"1900"}

{"sheet":"ХВС","index":0,"n_rows":62,"n_cols":26,"rows_kept":62,"cut":false,"hidden":false,"merged":[[49,20,49,23],[26,17,26,19],[21,17,21,18],[30,17,30,19],[22,17,22,18],[35,17,35,19],[0,8,0,25],[5,8,5,12],[6,8,6,12],[34,20,34,23],[2,14,2,16],[3,14,3,16],[2,8,2,12],[3,8,3,12],[2,18,2,21],[3,18,3,21],[17,13,18,13],[4,8,4,14],[13,16,16,16],[11,16,11,23],[12,16,12,23],[13,19,16,19],[13,20,14,22],[13,23,16,23],[30,3,30,8],[30,0,30,1],[26,0,26,1],[13,6,16,6],[13,12,16,12],[13,7,16,7],[15,4,16,4],[13,3,16,3],[17,8,18,8],[17,4,18,4],[17,2,18,2],[13,4,14,5],[13,9,14,11],[15,9,16,9],[15,10,15,11],[17,11,18,11],[15,5,16,5],[63,0,63,1],[58,0,58,1],[57,0,57,1],[17,0,18,0],[17,1,18,1],[21,0,21,1],[22,0,22,1],[19,0,19,1],[40,0,40,1],[41,0,41,1],[45,0,45,1],[41,3,41,7],[26,3,26,4],[26,6,26,8],[62,0,62,1],[40,3,40,7],[34,9,34,12],[17,7,18,7],[12,3,12,12],[11,1,11,15],[60,2,60,5],[60,7,60,10],[58,8,58,9],[34,13,34,15],[49,9,49,12],[57,5,57,7],[58,5,58,7],[49,13,49,15],[39,0,39,15],[57,8,57,9],[35,0,35,1],[35,3,35,8],[50,0,50,1],[50,3,50,8],[45,3,45,8],[7,4,7,5],[12,2,16,2],[20,0,20,15],[17,5,18,5],[19,3,19,4],[19,6,19,7],[21,3,21,7],[22,3,22,7],[17,3,18,3],[13,14,15,15],[11,0,16,0],[12,1,16,1],[17,15,18,15],[13,13,16,13],[15,20,16,20],[15,21,15,22],[13,8,16,8],[12,13,12,15],[13,17,16,17],[13,18,16,18],[11,25,16,25],[17,16,18,16],[17,18,18,18],[17,20,18,20],[17,22,18,22],[11,24,16,24],[17,25,18,25]]}
[null,null,null,null,null,null,null,null,"Приложение №1 к письму Департамента тарифного регулирования Томской области от______________ №_____________________"]
[null,null,null,null,null,null,null,null,null,null,null,null,null,null,null,null,null,null,null,null,null,null,null,null,null,"Таблица № 1"]
["Расчет объемов услуг по холодному водоснабжению, оказанных населению в 2016 году, прогноз на 2017 год",null,null,null,null,null,null,null,null,null,null,null,null,"по"]
[null,null,null,null,null,null,null,null,"(наименование организации, оказывающей коммунальную услугу населению)",null,null,null,null,null,"(наименование сельского поселения, городского округа, города)",null,null,null,"(наименование района)"]
[null,null,null,null,null,null,null,null,"Сверка объемов коммунальной услуги за 2016 год "]
[null,null,null,null,null,null,null,null,"Объем коммунальной услуги за 2016 год, представленный организацией в Департамент тарифного регулирования Томской области для формирования тарифа на 2018 год"]
[null,null,null,null,null,null,null,null,"Разница с данными, представленными в таблице\n (стр.6гр.N-стр.18гр.N)",null,null,null,null,{"$f":"N6-N20","v":0},{"$f":"IF(N7=0,\"ВЕРНО\",\"ОШИБКА\")","v":"ВЕРНО"}]
[null,null,null,null,"Тариф с 01.07.2016",null,null,null,null,null,null,null,null,null,null,null,"Тариф с 01.07.2017"]
[]
[null,null,null,"по нормативам"]
[null,null,null,"по приборам учета"]
["Наименование населенного пункта","2016 год(факт)",null,null,null,null,null,null,null,null,null,null,null,null,null,null,"Прогноз при переходе на новые нормативы по приказу ДЖКХ от 30.11.2012 № 47",null,null,null,null,null,null,null,"Рост платы граждан за потребление коммунальной услуги декабрь 2017 к декабрю 2016, %","Примечание"]
[null,"Степень благоустройства жилых помещений  (наименование в соответствии с нормативным документом, утверждающим нормативы)","Единицы измерения","Декабрь 2016 года (факт)",null,null,null,null,null,null,null,null,null,"Объем услуг за 2016 год - всего ( факт)",null,null,"Декабрь 2017 года (прогноз)"]
[null,null,null,"Способ учета объема коммунальных услуг: по приборам учета, по нормативам\n(выбрать из всплывающего списка)","Для расчета услуг на общедомовые нужды (для жилых помещений, находящихся в непосредственном управлении) ",null,"*Тариф, действующий с 01.07.2016, руб./м3","Норматив потребления услуг, действующий в декабре 2016 года, \n","Численность населения, которому оказывается услуга, чел.,\n\nплощадь земельного участка, кв.м,\n\nколичество голов скота, голов\n","Объем потребления коммунальной услуги населением в декабре 2016г., м3\n\n",null,null,"Выручка за месяц, тыс.руб.","Всего","в том числе:",null,"Степень благоустройства жилых помещений согласно приказа Департамента ЖКХ от 30.11.2012 № 47\n(выбрать из всплывающего списка)","*Тариф, действующий с 01.07.2017, руб./м3","Норматив потребления услуг, действующий в декабре 2017 года, \n","Численность населения, которому оказывается услуга, чел.,\n\nплощадь земельного участка, кв.м,\n\nколичество голов скота, голов\n","Объем потребления коммунальной услуги населением в декабре 2017г., м3\n\n",null,null,"Выручка за месяц, тыс.руб."]
[]
[null,null,null,null,"Этажность","Площадь помещений, входящих в состав общего имущества в многоквартирном доме, м2",null,null,null,"Всего","в том числе:",null,null,null,null,null,null,null,null,null,"Всего","в том числе:"]
[null,null,null,null,null,null,null,null,null,null,"По нормативам\n\n","По приборам учета",null,null,"По нормативам\n\n","По приборам учета",null,null,null,null,null,"По нормативам\n\n","По приборам учета"]
[1,2,3,4,5,6,7,8,9,10,11,12,13,14,15,16,17,18,19,20,21,22,23,24,25,26]
[null,null,null,null,null,null,"= гр. G8",null,null,"(гр.11+гр.12)","(гр.8*гр.9(гр.6))",null,"(гр.7*гр.11(гр.12)/ 1000)",null,"(гр.11*12)",null,null,"=гр. R8",null,"=гр. 9",null,"(гр.19*гр.20)",null,"(гр.22(гр.23)*гр.18)/1000","гр.24/гр.13*100-100"]
["Всего по муниципальному образованию",null,"куб.м",null,null,{"$f":"F27","v":0},null,null,{"$f":"I22+I41","v":0},{"$f":"K20+L20","v":0},{"$f":"K22+K41","v":0},{"$f":"L22+L41","v":0},{"$f":"M22+M41","v":0},{"$f":"O20+P20","v":0},{"$f":"O22+O41","v":0},{"$f":"P22+P41","v":0},null,null,null,{"$f":"T22+T41","v":0},{"$f":"V20+W20","v":0},{"$f":"V22+V41","v":0},{"$f":"W22+W41","v":0},{"$f":"X22+X41","v":0},{"$f":"X20/M20-1","v":{"$error":"#DIV/0!"}}]
["Многоквартирные дома ( в т.ч. двухквартирные)"]
["Всего по многоквартирным домам (жилые помещения, общедомовые нужды, земельные участки)",null,null,null,null,null,null,null,{"$f":"I23","v":0},{"$f":"K22+L22","v":0},{"$f":"K23+K27+K31","v":0},{"$f":"L23+L27+L31","v":0},{"$f":"M23+M27+M31","v":0},{"$f":"O22+P22","v":0},{"$f":"O23+O27+O31+O36","v":0},{"$f":"P23+P27+P31+P36","v":0},"Всего по многоквартирным домам (жилые помещения, общедомовые нужды, земельные участки)",null,null,{"$f":"T23","v":0},{"$f":"V22+W22","v":0},{"$f":"V23+V27+V31","v":0},{"$f":"W23+W27+W31","v":0},{"$f":"X23+X27+X31","v":0},{"$f":"X22/M22-1","v":{"$error":"#DIV/0!"}}]
["Всего по жилым помещениям, в том числе:",null,null,null,null,null,null,null,{"$f":"SUM(I24:I26)","v":0},{"$f":"K23+L23","v":0},{"$f":"SUM(K24:K26)","v":0},{"$f":"SUM(L24:L26)","v":0},{"$f":"SUM(M24:M26)","v":0},{"$f":"O23+P23","v":0},{"$f":"SUM(O24:O26)","v":0},{"$f":"SUM(P24:P26)","v":0},"Всего по жилым помещениям, в том числе:",null,null,{"$f":"SUM(T24:T26)","v":0},{"$f":"V23+W23","v":0},{"$f":"SUM(V24:V26)","v":0},{"$f":"SUM(W24:W26)","v":0},{"$f":"SUM(X24:X26)","v":0},{"$f":"X23/M23-1","v":{"$error":"#DIV/0!"}}]
[null,null,"м3 на 1 чел.","по нормативам","х","х",{"$f":"$G$8","v":0},null,null,"х",{"$f":"IF(D24=$D$10,H24*I24,0)","v":0},null,{"$f":"IF(D24=$D$10,K24*G24/1000,IF(D24=$D$11,L24*G24/1000))","v":0},"х",{"$f":"IF(D24=$D$10,K24*12,0)","v":0},null,null,{"$f":"$R$8","v":0},{"$f":"SUMIF(уровни2016,Q24,'Нормативы ХВС ГВС ВОВ'!$C$4:$C$20)","v":0},{"$f":"I24","v":0},"х",{"$f":"IF(D24=$D$10,S24*T24,0)","v":0},{"$f":"L24","v":0},{"$f":"IF(D24=$D$10,V24*R24/1000,IF(D24=$D$11,W24*R24/1000))","v":0},{"$f":"X24/M24-1","v":{"$error":"#DIV/0!"}}]
[null,null,"м3 на 1 чел.","по нормативам","х","х",{"$f":"$G$8","v":0},null,null,"х",{"$f":"IF(D25=$D$10,H25*I25,0)","v":0},null,{"$f":"IF(D25=$D$10,K25*G25/1000,IF(D25=$D$11,L25*G25/1000))","v":0},"х",{"$f":"IF(D25=$D$10,K25*12,0)","v":0},null,null,{"$f":"$R$8","v":0},{"$f":"SUMIF(уровни2016,Q25,'Нормативы ХВС ГВС ВОВ'!$C$4:$C$20)","v":0},{"$f":"I25","v":0},"х",{"$f":"IF(D25=$D$10,S25*T25,0)","v":0},{"$f":"L25","v":0},{"$f":"IF(D25=$D$10,V25*R25/1000,IF(D25=$D$11,W25*R25/1000))","v":0},{"$f":"X25/M25-1","v":{"$error":"#DIV/0!"}}]
["ДОБАВИТЬ СТРОКИ"]
["Всего по общедомовым нуждам (для жилых помещений, находящихся в непосредственном управлении) в том числе:",null,null,null,null,{"$f":"SUM(F28:F30)","v":0},null,null,null,{"$f":"K27+L27","v":0},{"$f":"SUM(K28:K30)","v":0},{"$f":"SUM(L28:L30)","v":0},{"$f":"SUM(M28:M30)","v":0},{"$f":"O27+P27","v":0},{"$f":"SUM(O28:O30)","v":0},{"$f":"SUM(P28:P30)","v":0},"Всего по общедомовым нуждам (для жилых помещений, находящихся в непосредственном управлении) в том числе:",null,null,null,{"$f":"V27+W27","v":0},{"$f":"SUM(V28:V30)","v":0},{"$f":"SUM(W28:W30)","v":0},{"$f":"SUM(X28:X30)","v":0},{"$f":"X27/M27-1","v":{"$error":"#DIV/0!"}}]
[null,null,"куб. м в месяц на 1 кв. м общей площади","по нормативам",null,null,{"$f":"$G$8","v":0},null,null,"х",{"$f":"IF(D28=$D$10,H28*F28,0)","v":0},null,{"$f":"IF(D28=$D$10,K28*G28/1000,IF(D28=$D$11,L28*G28/1000))","v":0},"х",{"$f":"IF(D28=$D$10,K28*12,0)","v":0},null,null,{"$f":"$R$8","v":0},{"$f":"SUMIF(ОДН2017,Q28,'нормативы ОДН ХВС ГВС'!$C$6:$C$28)","v":0},{"$f":"I28","v":0},"х",{"$f":"IF(D28=$D$10,S28*F28,0)","v":0},{"$f":"L28","v":0},{"$f":"IF(D28=$D$10,V28*R28/1000,IF(D28=$D$11,W28*R28/1000))","v":0},{"$f":"X28/M28-1","v":{"$error":"#DIV/0!"}}]
[null,null,"куб. м в месяц на 1 кв. м общей площади","по приборам учета",null,null,{"$f":"$G$8","v":0},null,null,"х",{"$f":"IF(D29=$D$10,H29*F29,0)","v":0},null,{"$f":"IF(D29=$D$10,K29*G29/1000,IF(D29=$D$11,L29*G29/1000))","v":0},"х",{"$f":"IF(D29=$D$10,K29*12,0)","v":0},null,null,{"$f":"$R$8","v":0},{"$f":"SUMIF(ОДН2017,Q29,'нормативы ОДН ХВС ГВС'!$C$6:$C$28)","v":0},{"$f":"I29","v":0},"х",{"$f":"IF(D29=$D$10,S29*F29,0)","v":0},{"$f":"L29","v":0},{"$f":"IF(D29=$D$10,V29*R29/1000,IF(D29=$D$11,W29*R29/1000))","v":0},{"$f":"X29/M29-1","v":{"$error":"#DIV/0!"}}]
["ДОБАВИТЬ СТРОКИ"]
["Всего для бань, кормления скота, в том числе:",null,null,null,null,null,null,null,null,{"$f":"K31+L31","v":0},{"$f":"SUM(K32:K34)","v":0},{"$f":"SUM(L32:L34)","v":0},{"$f":"SUM(M32:M34)","v":0},{"$f":"O31+P31","v":0},{"$f":"SUM(O32:O34)","v":0},{"$f":"SUM(P32:P34)","v":0},"Всего для бань, кормления скота, в том числе:",null,null,null,{"$f":"V31+W31","v":0},{"$f":"SUM(V32:V34)","v":0},{"$f":"SUM(W32:W34)","v":0},{"$f":"SUM(X32:X34)","v":0},{"$f":"X31/M31-1","v":{"$error":"#DIV/0!"}}]
[null,null,"куб. м в месяц ","по нормативам","х","х",{"$f":"$G$8","v":0},null,null,"х",{"$f":"IF(D32=$D$10,H32*I32,0)","v":0},null,{"$f":"IF(D32=$D$10,K32*G32/1000,IF(D32=$D$11,L32*G32/1000))","v":0},"х",{"$f":"IF(D32=$D$10,K32*12,0)","v":0},null,null,{"$f":"$R$8","v":0},{"$f":"SUMIF(ХВСбани_скот,Q32,'нормативы ХВС бани,полив, скот'!$D$8:$D$23)","v":0},{"$f":"I32","v":0},"х",{"$f":"IF(D32=$D$10,S32*T32,0)","v":0},{"$f":"L32","v":0},{"$f":"IF(D32=$D$10,V32*R32/1000,IF(D32=$D$11,W32*R32/1000))","v":0},{"$f":"X32/M32-1","v":{"$error":"#DIV/0!"}}]
[null,null,"куб. м в месяц ","по приборам учета","х","х",{"$f":"$G$8","v":0},null,null,"х",{"$f":"IF(D33=$D$10,H33*I33,0)","v":0},null,{"$f":"IF(D33=$D$10,K33*G33/1000,IF(D33=$D$11,L33*G33/1000))","v":0},"х",{"$f":"IF(D33=$D$10,K33*12,0)","v":0},null,null,{"$f":"$R$8","v":0},{"$f":"SUMIF(ХВСбани_скот,Q33,'нормативы ХВС бани,полив, скот'!$D$8:$D$23)","v":0},{"$f":"I33","v":0},"х",{"$f":"IF(D33=$D$10,S33*T33,0)","v":0},{"$f":"L33","v":0},{"$f":"IF(D33=$D$10,V33*R33/1000,IF(D33=$D$11,W33*R33/1000))","v":0},{"$f":"X33/M33-1","v":{"$error":"#DIV/0!"}}]
["ДОБАВИТЬ СТРОКИ"]
[null,null,null,null,null,null,null,null,null,"в среднем за 1 месяц полива\n (в расчет за декабрь не входит)",null,null,null,"расчет за 3 месяца полива",null,null,null,null,null,null,"в среднем за 1 месяц полива\n (в расчет за декабрь не входит)"]
["Всего для полива земельных участков, в том числе:",null,null,null,null,null,null,null,null,{"$f":"K36+L36","v":0},{"$f":"SUM(K37:K39)","v":0},{"$f":"SUM(L37:L39)","v":0},{"$f":"SUM(M37:M39)","v":0},{"$f":"O36+P36","v":0},{"$f":"SUM(O37:O39)","v":0},{"$f":"SUM(P37:P39)","v":0},"Всего для полива земельных участков, в том числе:",null,null,null,{"$f":"V36+W36","v":0},{"$f":"SUM(V37:V39)","v":0},{"$f":"SUM(W37:W39)","v":0},{"$f":"SUM(X37:X39)","v":0},{"$f":"X36/M36-1","v":{"$error":"#DIV/0!"}}]
[null,null,"куб. м в месяц на 1 кв. м земельного участка","по приборам учета","х","х",{"$f":"$G$8","v":0},null,null,"х",{"$f":"IF(D37=$D$10,H37*I37,0)","v":0},null,{"$f":"IF(D37=$D$10,K37*G37/1000,IF(D37=$D$11,L37*G37/1000))","v":0},"х",{"$f":"IF(D37=$D$10,K37*12,0)","v":0},null,null,{"$f":"$R$8","v":0},{"$f":"SUMIF(полив,Q37,'нормативы ХВС бани,полив, скот'!$D$5:$D$6)","v":0},{"$f":"I37","v":0},"х",{"$f":"IF(D37=$D$10,S37*T37,0)","v":0},{"$f":"L37","v":0},{"$f":"IF(D37=$D$10,V37*R37/1000,IF(D37=$D$11,W37*R37/1000))","v":0},{"$f":"X37/M37-1","v":{"$error":"#DIV/0!"}}]
[null,null,"куб. м в месяц на 1 кв. м земельного участка","по приборам учета","х","х",{"$f":"$G$8","v":0},null,null,"х",{"$f":"IF(D38=$D$10,H38*I38,0)","v":0},null,{"$f":"IF(D38=$D$10,K38*G38/1000,IF(D38=$D$11,L38*G38/1000))","v":0},"х",{"$f":"IF(D38=$D$10,K38*12,0)","v":0},null,null,{"$f":"$R$8","v":0},{"$f":"SUMIF(полив,Q38,'нормативы ХВС бани,полив, скот'!$D$5:$D$6)","v":0},{"$f":"I38","v":0},"х",{"$f":"IF(D38=$D$10,S38*T38,0)","v":0},{"$f":"L38","v":0},{"$f":"IF(D38=$D$10,V38*R38/1000,IF(D38=$D$11,W38*R38/1000))","v":0},{"$f":"X38/M38-1","v":{"$error":"#DIV/0!"}}]
["ДОБАВИТЬ СТРОКИ"]
["Частные дома"]
["Всего по частным домам, в том числе:",null,null,null,null,null,null,null,{"$f":"I42","v":0},{"$f":"K41+L41","v":0},{"$f":"K42+K46","v":0},{"$f":"L42+L46","v":0},{"$f":"M42+M46","v":0},{"$f":"O41+P41","v":0},{"$f":"O42+O46+O51","v":0},{"$f":"P42+P46+P51","v":0},"Всего по частным домам, в том числе:",null,null,{"$f":"T42","v":0},{"$f":"V41+W41","v":0},{"$f":"V42+V46","v":0},{"$f":"W42+W46","v":0},{"$f":"X42+X46","v":0},{"$f":"X41/M41-1","v":{"$error":"#DIV/0!"}}]
["Всего по жилым помещениям, в том числе:",null,null,null,null,null,null,null,{"$f":"SUM(I43:I45)","v":0},{"$f":"K42+L42","v":0},{"$f":"SUM(K43:K45)","v":0},0,0,{"$f":"SUM(N43:N45)","v":0},0,0,"Всего по жилым помещениям, в том числе:",null,null,{"$f":"SUM(T43:T45)","v":0},{"$f":"V42+W42","v":0},{"$f":"SUM(V43:V45)","v":0},{"$f":"SUM(W43:W45)","v":0},{"$f":"SUM(X43:X45)","v":0},{"$error":"#DIV/0!"}]
[null,null,"м3 на 1 чел.","по нормативам","х","х",{"$f":"$G$8","v":0},null,null,"х",{"$f":"IF(D43=$D$10,H43*I43,0)","v":0},null,{"$f":"IF(D43=$D$10,K43*G43/1000,IF(D43=$D$11,L43*G43/1000))","v":0},"х",{"$f":"IF(D43=$D$10,K43*12,0)","v":0},null,null,{"$f":"$R$8","v":0},{"$f":"SUMIF(уровни2016,Q43,'Нормативы ХВС ГВС ВОВ'!$C$4:$C$20)","v":0},{"$f":"I43","v":0},"х",{"$f":"IF(D43=$D$10,S43*T43,0)","v":0},{"$f":"L43","v":0},{"$f":"IF(D43=$D$10,V43*R43/1000,IF(D43=$D$11,W43*R43/1000))","v":0},{"$f":"X43/M43-1","v":{"$error":"#DIV/0!"}}]
[null,null,"м3 на 1 чел.","по приборам учета","х","х",{"$f":"$G$8","v":0},null,null,"х",{"$f":"IF(D44=$D$10,H44*I44,0)","v":0},null,{"$f":"IF(D44=$D$10,K44*G44/1000,IF(D44=$D$11,L44*G44/1000))","v":0},"х",{"$f":"IF(D44=$D$10,K44*12,0)","v":0},null,null,{"$f":"$R$8","v":0},{"$f":"SUMIF(уровни2016,Q44,'Нормативы ХВС ГВС ВОВ'!$C$4:$C$20)","v":0},{"$f":"I44","v":0},"х",{"$f":"IF(D44=$D$10,S44*T44,0)","v":0},{"$f":"L44","v":0},{"$f":"IF(D44=$D$10,V44*R44/1000,IF(D44=$D$11,W44*R44/1000))","v":0},{"$f":"X44/M44-1","v":{"$error":"#DIV/0!"}}]
["ДОБАВИТЬ СТРОКИ"]
["Всего для бань, кормления скота, в том числе:",null,null,null,null,null,null,null,null,{"$f":"K46+L46","v":0},{"$f":"SUM(K47:K49)","v":0},0,0,0,0,0,"Всего для бань, кормления скота, в том числе:",null,null,null,{"$f":"V46+W46","v":0},{"$f":"SUM(V47:V49)","v":0},{"$f":"SUM(W47:W49)","v":0},{"$f":"SUM(X47:X49)","v":0},{"$error":"#DIV/0!"}]
[null,null,"куб. м в месяц ","по приборам учета","х","х",{"$f":"$G$8","v":0},null,null,"х",{"$f":"IF(D47=$D$10,H47*I47,0)","v":0},null,{"$f":"IF(D47=$D$10,K47*G47/1000,IF(D47=$D$11,L47*G47/1000))","v":0},"х",{"$f":"IF(D47=$D$10,K47*12,0)","v":0},null,null,{"$f":"$R$8","v":0},{"$f":"SUMIF(ХВСбани_скот,Q47,'нормативы ХВС бани,полив, скот'!$D$8:$D$23)","v":0},{"$f":"I47","v":0},"х",{"$f":"IF(D47=$D$10,S47*T47,0)","v":0},{"$f":"L47","v":0},{"$f":"IF(D47=$D$10,V47*R47/1000,IF(D47=$D$11,W47*R47/1000))","v":0},{"$f":"X47/M47-1","v":{"$error":"#DIV/0!"}}]
[null,null,"куб. м в месяц ","по приборам учета","х","х",{"$f":"$G$8","v":0},null,null,"х",{"$f":"IF(D48=$D$10,H48*I48,0)","v":0},null,{"$f":"IF(D48=$D$10,K48*G48/1000,IF(D48=$D$11,L48*G48/1000))","v":0},"х",{"$f":"IF(D48=$D$10,K48*12,0)","v":0},null,null,{"$f":"$R$8","v":0},{"$f":"SUMIF(ХВСбани_скот,Q48,'нормативы ХВС бани,полив, скот'!$D$8:$D$23)","v":0},{"$f":"I48","v":0},"х",{"$f":"IF(D48=$D$10,S48*T48,0)","v":0},{"$f":"L48","v":0},{"$f":"IF(D48=$D$10,V48*R48/1000,IF(D48=$D$11,W48*R48/1000))","v":0},{"$f":"X48/M48-1","v":{"$error":"#DIV/0!"}}]
["ДОБАВИТЬ СТРОКИ"]
[null,null,null,null,null,null,null,null,null,"в среднем за 1 месяц полива\n (в расчет за декабрь не входит)",null,null,null,"расчет за 3 месяца полива",null,null,null,null,null,null,"в среднем за 1 месяц полива\n (в расчет за декабрь не входит)"]
["Всего для полива земельных участков, в том числе:",null,null,null,null,null,null,null,null,{"$f":"K51+L51","v":0},{"$f":"SUM(K52:K54)","v":0},{"$f":"SUM(L52:L54)","v":0},{"$f":"SUM(M52:M54)","v":0},{"$f":"O51+P51","v":0},{"$f":"SUM(O52:O54)","v":0},{"$f":"SUM(P52:P54)","v":0},null,null,null,null,{"$f":"V51+W51","v":0},{"$f":"SUM(V52:V54)","v":0},{"$f":"SUM(W52:W54)","v":0},{"$f":"SUM(X52:X54)","v":0},{"$f":"X51/M51-1","v":{"$error":"#DIV/0!"}}]
[null,null,"куб. м в месяц на 1 кв. м земельного участка","по приборам учета","х","х",{"$f":"$G$8","v":0},null,null,"х",{"$f":"IF(D52=$D$10,H52*I52,0)","v":0},null,{"$f":"IF(D52=$D$10,K52*G52/1000,IF(D52=$D$11,L52*G52/1000))","v":0},"х",{"$f":"IF(D52=$D$10,K52*3,0)","v":0},null,null,{"$f":"$R$8","v":0},{"$f":"SUMIF(полив,Q52,'нормативы ХВС бани,полив, скот'!$D$5:$D$6)","v":0},{"$f":"I52","v":0},"х",{"$f":"IF(D52=$D$10,S52*T52,0)","v":0},{"$f":"L52","v":0},{"$f":"IF(D52=$D$10,V52*R52/1000,IF(D52=$D$11,W52*R52/1000))","v":0},{"$f":"X52/M52-1","v":{"$error":"#DIV/0!"}}]
[null,null,"куб. м в месяц на 1 кв. м земельного участка","по приборам учета","х","х",{"$f":"$G$8","v":0},null,null,"х",{"$f":"IF(D53=$D$10,H53*I53,0)","v":0},null,{"$f":"IF(D53=$D$10,K53*G53/1000,IF(D53=$D$11,L53*G53/1000))","v":0},"х",{"$f":"IF(D53=$D$10,K53*3,0)","v":0},null,null,{"$f":"$R$8","v":0},{"$f":"SUMIF(полив,Q53,'нормативы ХВС бани,полив, скот'!$D$5:$D$6)","v":0},{"$f":"I53","v":0},"х",{"$f":"IF(D53=$D$10,S53*T53,0)","v":0},{"$f":"L53","v":0},{"$f":"IF(D53=$D$10,V53*R53/1000,IF(D53=$D$11,W53*R53/1000))","v":0},{"$f":"X53/M53-1","v":{"$error":"#DIV/0!"}}]
["ДОБАВИТЬ СТРОКИ"]
[]
["*Тариф по организации коммунального комплекса для населения указывается с НДС - для организаций на общей системе налогообложения, с учетом инвестиционной надбавки"]
[]
["Руководитель ресурсоснабжающей организации_______________________________",null,null,"МП",null,"___________________________",null,null,"______________"]
["(наименование организации)",null,null,null,null,"             (Фамилия,имя,отчетство)",null,null,"(телефон)"]
[]
["Исполнитель","___________________________","Контактный телефон______________",null,null,null,null,"Электронная почта:_________________"]
[null,"             (Фамилия,имя,отчетство  полностью)"]

{"sheet":"ВОВ","index":1,"n_rows":38,"n_cols":26,"rows_kept":38,"cut":false,"hidden":false,"merged":[[0,8,0,25],[2,8,2,12],[2,14,2,16],[2,18,2,21],[3,8,3,12],[3,14,3,16],[3,18,3,21],[4,8,4,14],[5,8,5,12],[6,8,6,12],[7,4,7,5],[11,0,16,0],[11,1,11,15],[13,6,16,6],[13,7,16,7],[13,8,16,8],[13,9,14,11],[15,10,15,11],[11,16,11,23],[11,24,16,24],[11,25,16,25],[12,1,16,1],[12,2,16,2],[12,3,12,12],[12,13,12,15],[12,16,12,23],[13,3,16,3],[13,4,14,5],[13,19,16,19],[13,20,14,22],[13,23,16,23],[15,4,16,4],[15,5,16,5],[15,9,16,9],[15,20,16,20],[15,21,15,22],[13,12,16,12],[13,13,16,13],[13,14,15,15],[13,16,16,16],[13,17,16,17],[13,18,16,18],[17,13,18,13],[17,15,18,15],[17,16,18,16],[17,0,18,0],[17,1,18,1],[17,2,18,2],[17,3,18,3],[17,4,18,4],[17,5,18,5],[17,20,18,20],[17,22,18,22],[17,25,18,25],[25,0,25,15],[26,0,26,1],[26,3,26,7],[20,0,20,15],[21,0,21,1],[21,3,21,7],[19,0,19,1],[17,7,18,7],[17,8,18,8],[19,3,19,5],[21,17,21,18],[17,18,18,18],[17,11,18,11],[36,2,36,5],[36,7,36,10],[38,0,38,1],[39,0,39,1],[33,0,33,1],[33,5,33,7],[33,8,33,9],[34,0,34,1],[34,5,34,7],[34,8,34,9]]}
[null,null,null,null,null,null,null,null,"Приложение №2 к письму Департамента тарифного регулирования Томской области от______________ №_____________________"]
[null,null,null,null,null,null,null,null,null,null,null,null,null,null,null,null,null,null,null,null,null,null,null,null,null,"Таблица № 3"]
["Расчет объемов услуг по водоотведению, оказанных населению в 2016 году, прогноз на 2017 год",null,null,null,null,null,null,null,null,null,null,null,null,"по"]
[null,null,null,null,null,null,null,null,"(наименование организации, оказывающей коммунальную услугу населению)",null,null,null,null,null,"(наименование сельского поселения, городского округа, города)",null,null,null,"(наименование района)"]
[null,null,null,null,null,null,null,null,"Сверка объемов коммунальной услуги за 2016 год "]
[null,null,null,null,null,null,null,null,"Объем коммунальной услуги за 2016 год, представленный организацией в Департамент тарифного регулирования Томской области для формирования тарифа на 2018 год"]
[null,null,null,null,null,null,null,null,"Разница с данными, представленными в таблице\n (стр.6гр.N-стр.18гр.N)",null,null,null,null,{"$f":"N6-N20","v":0},{"$f":"IF(N7=0,\"ВЕРНО\",\"ОШИБКА\")","v":"ВЕРНО"}]
[null,null,null,null,"Тариф с 01.07.2016",null,null,null,null,null,null,null,null,null,null,null,"Тариф с 01.07.2017"]
[]
[null,null,null,"по нормативам"]
[null,null,null,"по приборам учета"]
["Наименование населенного пункта","2016 год(факт)",null,null,null,null,null,null,null,null,null,null,null,null,null,null,"Прогноз при переходе на новые нормативы по приказу ДЖКХ от 30.11.2012 № 47",null,null,null,null,null,null,null,"Рост платы граждан за потребление коммунальной услуги декабрь 2017 к декабрю 2016, %","Примечание"]
[null,"Степень благоустройства жилых помещений  (наименование в соответствии с нормативным документом, утверждающим нормативы)","Единицы измерения","Декабрь 2016 года (факт)",null,null,null,null,null,null,null,null,null,"Объем услуг за 2016 год - всего ( факт)",null,null,"Декабрь 2017 года (прогноз)"]
[null,null,null,"Способ учета объема коммунальных услуг: по приборам учета, по нормативам\n(выбрать из всплывающего списка)","Для расчета услуг на общедомовые нужды (для жилых помещений, находящихся в непосредственном управлении) ",null,"*Тариф, действующий с 01.07.2016, руб./м3","Норматив потребления услуг, действующий в декабре 2016 года, \n","Численность населения, которому оказывается услуга, чел.,\n\nплощадь земельного участка, кв.м,\n\nколичество голов скота, голов\n","Объем потребления коммунальной услуги населением в декабре 2016г., м3\n\n",null,null,"Выручка за месяц, тыс.руб.","Всего","в том числе:",null,"Степень благоустройства жилых помещений согласно приказа Департамента ЖКХ от 30.11.2012 № 47\n(выбрать из всплывающего списка)","*Тариф, действующий с 01.07.2017, руб./м3","Норматив потребления услуг, действующий в декабре 2017 года, \n","Численность населения, которому оказывается услуга, чел.,\n\nплощадь земельного участка, кв.м,\n\nколичество голов скота, голов\n","Объем потребления коммунальной услуги населением в декабре 2017г., м3\n\n",null,null,"Выручка за месяц, тыс.руб."]
[]
[null,null,null,null,"Этажность","Площадь помещений, входящих в состав общего имущества в многоквартирном доме, м2",null,null,null,"Всего","в том числе:",null,null,null,null,null,null,null,null,null,"Всего","в том числе:"]
[null,null,null,null,null,null,null,null,null,null,"По нормативам\n\n","По приборам учета",null,null,"По нормативам\n\n","По приборам учета",null,null,null,null,null,"По нормативам\n\n","По приборам учета"]
[1,2,3,4,5,6,7,8,9,10,11,12,13,14,15,16,17,18,19,20,21,22,23,24,25,26]
[null,null,null,null,null,null,"= гр. G8",null,null,"(гр.11+гр.12)","(гр.8*гр.9(гр.6))",null,"(гр.7*гр.11(гр.12)/ 1000)",null,"(гр.11*12)",null,null,"=гр. R8",null,"=гр. 9",null,"(гр.19*гр.20)",null,"(гр.22(гр.23)*гр.18)/1000","гр.24/гр.13*100-100"]
["Всего по муниципальному образованию",null,"куб.м","х",null,null,null,null,{"$f":"I22+I27","v":0},{"$f":"K20+L20","v":0},{"$f":"K22+K27","v":0},{"$f":"L22+L27","v":0},{"$f":"M22+M27","v":0},{"$f":"O20+P20","v":0},{"$f":"O22+O27","v":0},{"$f":"P22+P27","v":0},null,null,null,{"$f":"T22+T27","v":0},{"$f":"V20+W20","v":0},{"$f":"V22+V27","v":0},{"$f":"W22+W27","v":0},{"$f":"X22+X27","v":0},{"$f":"X20/M20-1","v":{"$error":"#DIV/0!"}}]
["Многоквартирные дома ( в т.ч. двухквартирные)"]
["Всего по многоквартирным домам (жилые помещения, общедомовые нужды, земельные участки)",null,null,null,null,null,null,null,{"$f":"SUM(I23:I25)","v":0},{"$f":"K22+L22","v":0},{"$f":"SUM(K23:K25)","v":0},{"$f":"SUM(L23:L25)","v":0},{"$f":"SUM(M23:M25)","v":0},{"$f":"O22+P22","v":0},{"$f":"SUM(O23:O25)","v":0},{"$f":"SUM(P23:P25)","v":0},"Всего по многоквартирным домам (жилые помещения, общедомовые нужды, земельные участки)",null,null,{"$f":"SUM(T23:T25)","v":0},{"$f":"V22+W22","v":0},{"$f":"SUM(V23:V25)","v":0},{"$f":"SUM(W23:W25)","v":0},{"$f":"SUM(X23:X25)","v":0},{"$f":"X22/M22-1","v":{"$error":"#DIV/0!"}}]
[null,null,"м3 на 1 чел.","по нормативам","х","х",{"$f":"$G$8","v":0},null,null,"х",{"$f":"IF(D23=$D$10,H23*I23,0)","v":0},null,{"$f":"IF(D23=$D$10,K23*G23/1000,IF(D23=$D$11,L23*G23/1000))","v":0},"х",{"$f":"IF(D23=$D$10,K23*12,0)","v":0},null,null,{"$f":"$R$8","v":0},{"$f":"SUMIF(уровни2016,Q23,'Нормативы ХВС ГВС ВОВ'!$E$4:$E$20)","v":0},{"$f":"I23","v":0},"х",{"$f":"IF(D23=$D$10,S23*T23,0)","v":0},{"$f":"L23","v":0},{"$f":"IF(D23=$D$10,V23*R23/1000,IF(D23=$D$11,W23*R23/1000))","v":0},{"$f":"X23/M23-1","v":{"$error":"#DIV/0!"}}]
[null,null,"м3 на 1 чел.","по нормативам","х","х",{"$f":"$G$8","v":0},null,null,"х",{"$f":"IF(D24=$D$10,H24*I24,0)","v":0},null,{"$f":"IF(D24=$D$10,K24*G24/1000,IF(D24=$D$11,L24*G24/1000))","v":0},"х",{"$f":"IF(D24=$D$10,K24*12,0)","v":0},null,null,{"$f":"$R$8","v":0},{"$f":"SUMIF(уровни2016,Q24,'Нормативы ХВС ГВС ВОВ'!$E$4:$E$20)","v":0},{"$f":"I24","v":0},"х",{"$f":"IF(D24=$D$10,S24*T24,0)","v":0},{"$f":"L24","v":0},{"$f":"IF(D24=$D$10,V24*R24/1000,IF(D24=$D$11,W24*R24/1000))","v":0},{"$f":"X24/M24-1","v":{"$error":"#DIV/0!"}}]
["ДОБАВИТЬ СТРОКИ"]
["Частные дома"]
["Всего по частным домам, в том числе:",null,null,null,null,null,null,null,{"$f":"SUM(I28:I30)","v":0},{"$f":"K27+L27","v":0},{"$f":"SUM(K28:K30)","v":0},0,0,{"$f":"O27+P27","v":0},{"$f":"SUM(O28:O30)","v":0},0,"Всего по частным домам, в том числе:",null,null,{"$f":"SUM(T28:T30)","v":0},{"$f":"V27+W27","v":0},{"$f":"SUM(V28:V30)","v":0},{"$f":"SUM(W28:W30)","v":0},{"$f":"SUM(X28:X30)","v":0},{"$f":"SUM(Y28:Y30)","v":{"$error":"#DIV/0!"}}]
[null,null,"м3 на 1 чел.","по нормативам","х","х",{"$f":"$G$8","v":0},null,null,"х",{"$f":"IF(D28=$D$10,H28*I28,0)","v":0},null,{"$f":"IF(D28=$D$10,K28*G28/1000,IF(D28=$D$11,L28*G28/1000))","v":0},"х",{"$f":"IF(D28=$D$10,K28*12,0)","v":0},null,null,{"$f":"$R$8","v":0},{"$f":"SUMIF(уровни2016,Q28,'Нормативы ХВС ГВС ВОВ'!$E$4:$E$20)","v":0},{"$f":"I28","v":0},"х",{"$f":"IF(D28=$D$10,S28*T28,0)","v":0},{"$f":"L28","v":0},{"$f":"IF(D28=$D$10,V28*R28/1000,IF(D28=$D$11,W28*R28/1000))","v":0},{"$f":"X28/M28-1","v":{"$error":"#DIV/0!"}}]
[null,null,"м3 на 1 чел.","по приборам учета","х","х",{"$f":"$G$8","v":0},null,null,"х",{"$f":"IF(D29=$D$10,H29*I29,0)","v":0},null,{"$f":"IF(D29=$D$10,K29*G29/1000,IF(D29=$D$11,L29*G29/1000))","v":0},"х",{"$f":"IF(D29=$D$10,K29*12,0)","v":0},null,null,{"$f":"$R$8","v":0},{"$f":"SUMIF(уровни2016,Q29,'Нормативы ХВС ГВС ВОВ'!$E$4:$E$20)","v":0},{"$f":"I29","v":0},"х",{"$f":"IF(D29=$D$10,S29*T29,0)","v":0},{"$f":"L29","v":0},{"$f":"IF(D29=$D$10,V29*R29/1000,IF(D29=$D$11,W29*R29/1000))","v":0},{"$f":"X29/M29-1","v":{"$error":"#DIV/0!"}}]
["ДОБАВИТЬ СТРОКИ"]
[]
["*Тариф по организации коммунального комплекса для населения указывается с НДС - для организаций на общей системе налогообложения, с учетом инвестиционной надбавки"]
[]
["Руководитель ресурсоснабжающей организации_______________________________",null,null,"МП",null,"___________________________",null,null,"______________"]
["(наименование организации)",null,null,null,null,"             (Фамилия,имя,отчетство)",null,null,"(телефон)"]
[]
["Исполнитель","___________________________","Контактный телефон______________",null,null,null,null,"Электронная почта:_________________"]
[null,"             (Фамилия,имя,отчетство  полностью)"]

{"sheet":"ГВС","index":2,"n_rows":44,"n_cols":26,"rows_kept":44,"cut":false,"hidden":false,"merged":[[45,0,45,1],[40,0,40,1],[40,5,40,7],[40,8,40,9],[42,2,42,5],[42,7,42,10],[44,0,44,1],[39,0,39,1],[39,5,39,7],[39,8,39,9],[30,0,30,15],[31,0,31,1],[31,3,31,7],[32,0,32,1],[32,3,32,7],[26,0,26,1],[26,3,26,4],[26,6,26,8],[26,17,26,19],[20,0,20,15],[21,0,21,1],[21,3,21,7],[21,17,21,18],[22,0,22,1],[22,3,22,7],[22,17,22,18],[17,25,18,25],[19,0,19,1],[19,3,19,4],[19,6,19,7],[17,7,18,7],[17,8,18,8],[17,11,18,11],[17,13,18,13],[17,15,18,15],[17,16,18,16],[17,0,18,0],[17,1,18,1],[17,2,18,2],[17,3,18,3],[17,4,18,4],[17,5,18,5],[13,16,16,16],[13,17,16,17],[13,19,16,19],[13,20,14,22],[17,18,18,18],[17,20,18,20],[17,22,18,22],[15,21,15,22],[13,18,16,18],[11,16,11,23],[11,24,16,24],[11,25,16,25],[12,1,16,1],[12,2,16,2],[12,3,12,12],[12,13,12,15],[12,16,12,23],[13,3,16,3],[13,4,14,5],[13,23,16,23],[15,4,16,4],[15,5,16,5],[15,9,16,9],[15,10,15,11],[15,20,16,20],[4,8,4,14],[5,8,5,12],[6,8,6,12],[7,4,7,5],[11,0,16,0],[11,1,11,15],[13,6,16,6],[13,7,16,7],[13,8,16,8],[13,9,14,11],[13,12,16,12],[13,13,16,13],[13,14,15,15],[0,8,0,25],[2,8,2,12],[2,14,2,16],[2,18,2,21],[3,8,3,12],[3,14,3,16],[3,18,3,21]]}
[null,null,null,null,null,null,null,null,"Приложение №3 к письму Департамента тарифного регулирования Томской области от______________ №_____________________"]
[null,null,null,null,null,null,null,null,null,null,null,null,null,null,null,null,null,null,null,null,null,null,null,null,null,"Таблица № 2"]
["Расчет объемов услуг по горячему водоснабжению, оказанных населению в 2016 году, прогноз на 2017 год",null,null,null,null,null,null,null,null,null,null,null,null,"по"]
[null,null,null,null,null,null,null,null,"(наименование организации, оказывающей коммунальную услугу населению)",null,null,null,null,null,"(наименование сельского поселения, городского округа, города)",null,null,null,"(наименование района)"]
[null,null,null,null,null,null,null,null,"Сверка объемов коммунальной услуги за 2016 год "]
[null,null,null,null,null,null,null,null,"Объем коммунальной услуги за 2016 год, представленный организацией в Департамент тарифного регулирования Томской области для формирования тарифа на 2018 год"]
[null,null,null,null,null,null,null,null,"Разница с данными, представленными в таблице\n (стр.6гр.N-стр.18гр.N)",null,null,null,null,{"$f":"N6-N20","v":0},{"$f":"IF(N7=0,\"ВЕРНО\",\"ОШИБКА\")","v":"ВЕРНО"}]
[null,null,null,null,"Тариф с 01.07.2016",null,null,null,null,null,null,null,null,null,null,null,"Тариф с 01.07.2017"]
[]
[null,null,null,"по нормативам"]
[null,null,null,"по приборам учета"]
["Наименование населенного пункта","2016 год(факт)",null,null,null,null,null,null,null,null,null,null,null,null,null,null,"Прогноз при переходе на новые нормативы по приказу ДЖКХ от 30.11.2012 № 47",null,null,null,null,null,null,null,"Рост платы граждан за потребление коммунальной услуги декабрь 2017 к декабрю 2016, %","Примечание"]
[null,"Степень благоустройства жилых помещений  (наименование в соответствии с нормативным документом, утверждающим нормативы)","Единицы измерения","Декабрь 2016 года (факт)",null,null,null,null,null,null,null,null,null,"Объем услуг за 2016 год - всего ( факт)",null,null,"Декабрь 2017 года (прогноз)"]
[null,null,null,"Способ учета объема коммунальных услуг: по приборам учета, по нормативам\n(выбрать из всплывающего списка)","Для расчета услуг на общедомовые нужды (для жилых помещений, находящихся в непосредственном управлении) ",null,"*Тариф, действующий с 01.07.2016, руб./м3","Норматив потребления услуг, действующий в декабре 2016 года, \n","Численность населения, которому оказывается услуга, чел.,\n\nплощадь земельного участка, кв.м,\n\nколичество голов скота, голов\n","Объем потребления коммунальной услуги населением в декабре 2016г., м3\n\n",null,null,"Выручка за месяц, тыс.руб.","Всего","в том числе:",null,"Степень благоустройства жилых помещений согласно приказа Департамента ЖКХ от 30.11.2012 № 47\n(выбрать из всплывающего списка)","*Тариф, действующий с 01.07.2017, руб./м3","Норматив потребления услуг, действующий в декабре 2017 года, \n","Численность населения, которому оказывается услуга, чел.,\n\nплощадь земельного участка, кв.м,\n\nколичество голов скота, голов\n","Объем потребления коммунальной услуги населением в декабре 2017г., м3\n\n",null,null,"Выручка за месяц, тыс.руб."]
[]
[null,null,null,null,"Этажность","Площадь помещений, входящих в состав общего имущества в многоквартирном доме, м2",null,null,null,"Всего","в том числе:",null,null,null,null,null,null,null,null,null,"Всего","в том числе:"]
[null,null,null,null,null,null,null,null,null,null,"По нормативам\n\n","По приборам учета",null,null,"По нормативам\n\n","По приборам учета",null,null,null,null,null,"По нормативам\n\n","По приборам учета"]
[1,2,3,4,5,6,7,8,9,10,11,12,13,14,15,16,17,18,19,20,21,22,23,24,25,26]
[null,null,null,null,null,null,"= гр. G8",null,null,"(гр.11+гр.12)","(гр.8*гр.9(гр.6))",null,"(гр.7*гр.11(гр.12)/ 1000)",null,"(гр.11*12)",null,null,"=гр. R8",null,"=гр. 9",null,"(гр.19*гр.20)",null,"(гр.22(гр.23)*гр.18)/1000","гр.24/гр.13*100-100"]
["Всего по муниципальному образованию",null,"куб.м",null,null,{"$f":"F27","v":0},null,null,{"$f":"I22+I32","v":0},{"$f":"K20+L20","v":0},{"$f":"K22+K32","v":0},{"$f":"L22+L32","v":0},{"$f":"M22+M32","v":0},{"$f":"O20+P20","v":0},{"$f":"O22+O32","v":0},{"$f":"P22+P32","v":0},null,null,null,{"$f":"T22+T32","v":0},{"$f":"V20+W20","v":0},{"$f":"V22+V32","v":0},{"$f":"W22+W32","v":0},{"$f":"X22+X32","v":0},{"$f":"X20/M20-1","v":{"$error":"#DIV/0!"}}]
["Многоквартирные дома ( в т.ч. двухквартирные)"]
["Всего по многоквартирным домам (жилые помещения, общедомовые нужды, земельные участки)",null,null,null,null,null,null,null,{"$f":"I23","v":0},{"$f":"K22+L22","v":0},{"$f":"K23+K27","v":0},{"$f":"L23+L27","v":0},{"$f":"M23+M27","v":0},{"$f":"O22+P22","v":0},{"$f":"O23+O27","v":0},{"$f":"P23+P27","v":0},"Всего по многоквартирным домам (жилые помещения, общедомовые нужды, земельные участки)",null,null,{"$f":"T23","v":0},{"$f":"V22+W22","v":0},{"$f":"V23+V27","v":0},{"$f":"W23+W27","v":0},{"$f":"X23+X27","v":0},{"$f":"X22/M22-1","v":{"$error":"#DIV/0!"}}]
["Всего по жилым помещениям, в том числе:",null,null,null,null,null,null,null,{"$f":"SUM(I24:I26)","v":0},{"$f":"K23+L23","v":0},{"$f":"SUM(K24:K26)","v":0},{"$f":"SUM(L24:L26)","v":0},{"$f":"SUM(M24:M26)","v":0},{"$f":"O23+P23","v":0},{"$f":"SUM(O24:O26)","v":0},{"$f":"SUM(P24:P26)","v":0},"Всего по жилым помещениям, в том числе:",null,null,{"$f":"SUM(T24:T26)","v":0},{"$f":"V23+W23","v":0},{"$f":"SUM(V24:V26)","v":0},{"$f":"SUM(W24:W26)","v":0},{"$f":"SUM(X24:X26)","v":0},{"$f":"X23/M23-1","v":{"$error":"#DIV/0!"}}]
[null,null,"м3 на 1 чел.","по нормативам","х","х",{"$f":"$G$8","v":0},null,null,"х",{"$f":"IF(D24=$D$10,H24*I24,0)","v":0},null,{"$f":"IF(D24=$D$10,K24*G24/1000,IF(D24=$D$11,L24*G24/1000))","v":0},"х",{"$f":"IF(D24=$D$10,K24*12,0)","v":0},null,null,{"$f":"$R$8","v":0},{"$f":"SUMIF(уровни2016,Q24,'Нормативы ХВС ГВС ВОВ'!$D$4:$D$20)","v":0},{"$f":"I24","v":0},"х",{"$f":"IF(D24=$D$10,S24*T24,0)","v":0},{"$f":"L24","v":0},{"$f":"IF(D24=$D$10,V24*R24/1000,IF(D24=$D$11,W24*R24/1000))","v":0},{"$f":"X24/M24-1","v":{"$error":"#DIV/0!"}}]
[null,null,"м3 на 1 чел.","по нормативам","х","х",{"$f":"$G$8","v":0},null,null,"х",{"$f":"IF(D25=$D$10,H25*I25,0)","v":0},null,{"$f":"IF(D25=$D$10,K25*G25/1000,IF(D25=$D$11,L25*G25/1000))","v":0},"х",{"$f":"IF(D25=$D$10,K25*12,0)","v":0},null,null,{"$f":"$R$8","v":0},{"$f":"SUMIF(уровни2016,Q25,'Нормативы ХВС ГВС ВОВ'!$D$4:$D$20)","v":0},{"$f":"I25","v":0},"х",{"$f":"IF(D25=$D$10,S25*T25,0)","v":0},{"$f":"L25","v":0},{"$f":"IF(D25=$D$10,V25*R25/1000,IF(D25=$D$11,W25*R25/1000))","v":0},{"$f":"X25/M25-1","v":{"$error":"#DIV/0!"}}]
["ДОБАВИТЬ СТРОКИ"]
["Всего по общедомовым нуждам (для жилых помещений, находящихся в непосредственном управлении) в том числе:",null,null,null,null,{"$f":"SUM(F28:F30)","v":0},null,null,null,{"$f":"K27+L27","v":0},{"$f":"SUM(K28:K30)","v":0},{"$f":"SUM(L28:L30)","v":0},{"$f":"SUM(M28:M30)","v":0},{"$f":"O27+P27","v":0},{"$f":"SUM(O28:O30)","v":0},{"$f":"SUM(P28:P30)","v":0},"Всего по общедомовым нуждам (для жилых помещений, находящихся в непосредственном управлении) в том числе:",null,null,null,{"$f":"V27+W27","v":0},{"$f":"SUM(V28:V30)","v":0},{"$f":"SUM(W28:W30)","v":0},{"$f":"SUM(X28:X30)","v":0},{"$f":"X27/M27-1","v":{"$error":"#DIV/0!"}}]
[null,null,"куб. м в месяц на 1 кв. м общей площади","по приборам учета",null,null,{"$f":"$G$8","v":0},null,null,"х",{"$f":"IF(D28=$D$10,H28*F28,0)","v":0},null,{"$f":"IF(D28=$D$10,K28*G28/1000,IF(D28=$D$11,L28*G28/1000))","v":0},"х",{"$f":"IF(D28=$D$10,K28*12,0)","v":0},null,null,{"$f":"$R$8","v":0},{"$f":"SUMIF(ОДН2017,Q28,'нормативы ОДН ХВС ГВС'!$D$6:$D$28)","v":0},{"$f":"I28","v":0},"х",{"$f":"IF(D28=$D$10,S28*F28,0)","v":0},{"$f":"L28","v":0},{"$f":"IF(D28=$D$10,V28*R28/1000,IF(D28=$D$11,W28*R28/1000))","v":0},{"$f":"X28/M28-1","v":{"$error":"#DIV/0!"}}]
[null,null,"куб. м в месяц на 1 кв. м общей площади","по приборам учета",null,null,{"$f":"$G$8","v":0},null,null,"х",{"$f":"IF(D29=$D$10,H29*F29,0)","v":0},null,{"$f":"IF(D29=$D$10,K29*G29/1000,IF(D29=$D$11,L29*G29/1000))","v":0},"х",{"$f":"IF(D29=$D$10,K29*12,0)","v":0},null,null,{"$f":"$R$8","v":0},{"$f":"SUMIF(ОДН2017,Q29,'нормативы ОДН ХВС ГВС'!$D$6:$D$28)","v":0},{"$f":"I29","v":0},"х",{"$f":"IF(D29=$D$10,S29*F29,0)","v":0},{"$f":"L29","v":0},{"$f":"IF(D29=$D$10,V29*R29/1000,IF(D29=$D$11,W29*R29/1000))","v":0},{"$f":"X29/M29-1","v":{"$error":"#DIV/0!"}}]
["ДОБАВИТЬ СТРОКИ"]
["Частные дома"]
["Всего по частным домам, в том числе:",null,null,null,null,null,null,null,{"$f":"I33","v":0},{"$f":"K32+L32","v":0},{"$f":"K33","v":0},{"$f":"L33","v":0},{"$f":"M33","v":0},{"$f":"O32+P32","v":0},{"$f":"O33","v":0},{"$f":"P33","v":0},"Всего по частным домам, в том числе:",null,null,{"$f":"T33","v":0},{"$f":"V32+W32","v":0},{"$f":"V33","v":0},{"$f":"W33","v":0},{"$f":"X33","v":0},{"$f":"X32/M32-1","v":{"$error":"#DIV/0!"}}]
["Всего по жилым помещениям, в том числе:",null,null,null,null,null,null,null,{"$f":"SUM(I34:I36)","v":0},{"$f":"K33+L33","v":0},{"$f":"SUM(K34:K36)","v":0},0,0,0,0,0,"Всего по жилым помещениям, в том числе:",null,null,{"$f":"SUM(T34:T36)","v":0},{"$f":"V33+W33","v":0},{"$f":"SUM(V34:V36)","v":0},{"$f":"SUM(W34:W36)","v":0},{"$f":"SUM(X34:X36)","v":0},{"$error":"#DIV/0!"}]
[null,null,"м3 на 1 чел.","по приборам учета","х","х",{"$f":"$G$8","v":0},null,null,"х",{"$f":"IF(D34=$D$10,H34*I34,0)","v":0},null,{"$f":"IF(D34=$D$10,K34*G34/1000,IF(D34=$D$11,L34*G34/1000))","v":0},"х",{"$f":"IF(D34=$D$10,K34*12,0)","v":0},null,null,{"$f":"$R$8","v":0},{"$f":"SUMIF(уровни2016,Q34,'Нормативы ХВС ГВС ВОВ'!$D$4:$D$20)","v":0},{"$f":"I34","v":0},"х",{"$f":"IF(D34=$D$10,S34*T34,0)","v":0},{"$f":"L34","v":0},{"$f":"IF(D34=$D$10,V34*R34/1000,IF(D34=$D$11,W34*R34/1000))","v":0},{"$f":"X34/M34-1","v":{"$error":"#DIV/0!"}}]
[null,null,"м3 на 1 чел.","по приборам учета","х","х",{"$f":"$G$8","v":0},null,null,"х",{"$f":"IF(D35=$D$10,H35*I35,0)","v":0},null,{"$f":"IF(D35=$D$10,K35*G35/1000,IF(D35=$D$11,L35*G35/1000))","v":0},"х",{"$f":"IF(D35=$D$10,K35*12,0)","v":0},null,null,{"$f":"$R$8","v":0},{"$f":"SUMIF(уровни2016,Q35,'Нормативы ХВС ГВС ВОВ'!$D$4:$D$20)","v":0},{"$f":"I35","v":0},"х",{"$f":"IF(D35=$D$10,S35*T35,0)","v":0},{"$f":"L35","v":0},{"$f":"IF(D35=$D$10,V35*R35/1000,IF(D35=$D$11,W35*R35/1000))","v":0},{"$f":"X35/M35-1","v":{"$error":"#DIV/0!"}}]
["ДОБАВИТЬ СТРОКИ"]
[]
["*Тариф по организации коммунального комплекса для населения указывается с НДС - для организаций на общей системе налогообложения, с учетом инвестиционной надбавки"]
[]
["Руководитель ресурсоснабжающей организации_______________________________",null,null,"МП",null,"___________________________",null,null,"______________"]
["(наименование организации)",null,null,null,null,"             (Фамилия,имя,отчетство)",null,null,"(телефон)"]
[]
["Исполнитель","___________________________","Контактный телефон______________",null,null,null,null,"Электронная почта:_________________"]
[null,"             (Фамилия,имя,отчетство  полностью)"]

{"sheet":"сравнение тепловых нагрузок","index":3,"n_rows":76,"n_cols":43,"rows_kept":76,"cut":false,"hidden":false,"merged":[[0,30,0,42],[1,0,1,42],[2,0,2,1],[2,2,2,8],[2,9,2,12],[2,13,2,23],[2,24,2,26],[2,27,2,42],[10,1,10,8],[10,17,10,42],[3,0,3,15],[3,16,3,42],[4,1,4,8],[4,12,10,15],[4,17,4,42],[5,1,5,8],[5,17,5,42],[6,1,6,8],[6,17,6,42],[7,1,7,8],[7,17,7,42],[8,1,8,8],[8,17,8,42],[9,1,9,8],[9,17,9,42],[16,5,20,5],[11,1,11,8],[11,12,11,15],[11,17,11,42],[12,1,12,42],[13,1,13,42],[14,1,14,42],[16,18,20,18],[16,6,20,6],[16,7,20,7],[16,8,20,8],[16,9,20,9],[16,10,20,10],[16,11,20,11],[16,12,19,13],[16,0,20,0],[16,1,19,1],[16,2,20,2],[16,3,19,3],[16,4,20,4],[16,14,20,14],[16,15,20,15],[16,16,20,16],[16,17,20,17],[16,42,20,42],[17,31,17,35],[17,36,17,40],[18,21,19,25],[18,26,19,30],[16,19,20,19],[16,20,20,20],[16,21,17,30],[16,31,16,40],[16,41,20,41],[18,31,20,31],[18,32,18,35],[18,36,20,36],[18,37,18,40],[19,32,19,33],[19,34,20,34],[19,35,20,35],[19,37,19,38],[19,39,20,39],[19,40,20,40],[26,0,26,1],[36,0,36,1],[43,0,43,1],[57,0,57,1],[80,1,80,42],[60,0,60,1],[61,0,61,1],[62,0,62,1],[63,0,65,0],[72,0,72,42],[74,0,74,42],[75,1,75,9],[76,0,76,3],[77,1,77,42],[78,1,78,42],[79,1,79,42]]}
[null,null,null,null,null,null,null,null,null,null,null,null,null,null,null,null,null,null,null,null,null,null,null,null,null,null,null,null,null,null,"Приложение № 4 к письму Департамента тарифного регулирования Томской области от_______________ №_________"]
["Расчет тепловых нагрузок потребителей тепла, подключенных к котельной (полезный отпуск)"]
["Район _______________________________________   Организация __________________________________ Котельная _______________________________________________",null,null,null,null,null,null,null,null,"Организация",null,null,null,null,null,null,null,null,null,null,null,null,null,null,"Котельная"]
["Климатические расчетные параметры  для данного района",null,null,null,null,null,null,null,null,null,null,null,null,null,null,null,"Примечание"]
[1,"Длительность отопительного периода",null,null,null,null,null,null,null,"Nот","сутки",null,"Указать принятые климатические параметры ",null,null,null,1,"В ячейках должны быть сохранены при копировании использованные расчетные формулы"]
[2,"Длительность работы ГВС в году, Nгвс, час/сутки",null,null,null,null,null,null,null,"Nгвс","сутки",null,null,null,null,null,2,"Тепловые нагрузки рассчитать отдельно по каждой группе потребителей  и просуммировать "]
[3,"Длительность работы системы вентиляции  в году",null,null,null,null,null,null,null,"Nв","сутки",null,null,null,null,null,3,"Новые объекты, подключенные к котельной, выделить цветом и шрифтом и указать в примечание   (новый объект)"]
[4,"Расчетная температура наружного воздуха для расчета отопления",null,null,null,null,null,null,null,"tнр","0С",null,null,null,null,null,4,"Отключенные объекты выделить в отдельную группу и показать их тепловую суммарную нагрузку"]
[5,"Расчетная температура наружного воздуха для расчета вентиляции",null,null,null,null,null,null,null,"tнв","0С",null,null,null,null,null,5,"Вентиляционные нагрузки учитывать только при наличии действующей приточно-вытяжной вентиляции с калориферами"]
[6,"Средняя температура наружного воздуха в отопительном периоде",null,null,null,null,null,null,null,"tср.о","0С",null,null,null,null,null,6,"При расчете вентиляции учитывать только вентилируемый объем здания и реальное число часов работы вентиляции в году"]
[7,"Средняя скорость воздуха в течение отопительного периода",null,null,null,null,null,null,null,"Wв","м/сек",null,null,null,null,null,7,"Среднюю скорость ветра в отопительном периоде принимать по СНиП или данным метеостанций за последние 5 лет с приложением заверенной справки"]
[8,"Поправочный коэф., учитывающий отличие расчетной температуры наружного воздуха от ( - 300С)",null,null,null,null,null,null,null,"a",null,{"$f":"1+0.01*(L8-(-30))","v":1.3},null,null,null,null,8,"При расчете нагрузки ГВС для больниц, прачечных, бань, промпредприятий и т.п.  представить дополнительную информацию ниже данной таблицы о принятых нормах потребления горячей воды и количестве потребителей"]
[9,"Объекты с принятыми в эксплуатацию теплосчетчиками отметить в примечание (тепл.счетчик) и представить копии договора и распечаток т/счетчика за каждый месяц прошлого года"]
[10,"Коэф., учитывающий тепловые потери трубопр. внутр. систем ГВС, Ктп  принимается от 0,1 до 0,35  в зависимости от схемы ГВС  внутри здания (СП 41-101-95 \"Проектирование тепловых пунктов\", приложение 2, табл. 1 от 01.07.1996)"]
[11,"Продолжительность и норму расхода горячей воды  принимать по данным Приложения №1 и №2 к таблице Т.1."]
[]
["№ п/п","Потребитель тепла (адрес) ","Год постройки","Исполнение","Число этажей","Свобод. высота здания, L, м","Площадь жилых помещений,  м2","Объем отапливаемого подвала (цокольного этажа), Vп, м3","Наружный строительный объем здания,  Vн, м3","Расчетный объем здания, Vр=(0,4*Vп+Vн), м3 ","Вентилируемый объем здания,  Vв, м3","Темпер. внутреннего воздуха,  tвн, 0С","Удельные тепловые характеристики,        ккал/м3*ч*0С",null,"Коэф., учит. потери через необогрев. пол 1-го этажа (для неотапл. подвалов), Кп","Коэф.инфильтр. (1+Кир)","Норма потребл. горячей воды, литр/сутки","Число потребителей ГВС (жителей, рабочих, посетителей и др.)","продолжительность водоразбора, час","Коэф., учитыв.потери тепла трубопров. внутр. систем ГВС, Ктп ","Длительность работы вентиляции, Nв, час/год","Расчет объемов потребления тепловой энергии исходя из характеристик зданий (нормативный расчет)",null,null,null,null,null,null,null,null,null,"Расчет объемов потребления тепловой энергии на отопление и ГВС ",null,null,null,null,null,null,null,null,null,"Справочно: фактический объем потребления тепловой энергии за 2016 год (согласно бухгалтерскому учету)","Примечание"]
[null,null,null,null,null,null,null,null,null,null,null,null,null,null,null,null,null,null,null,null,null,null,null,null,null,null,null,null,null,null,null,"по действующим нормативам",null,null,null,null,"по нормативам  Департамента ЖКХ и государственного жилищного надзора ТО  в соответствии с приказом от 30.11.2012 N 47"]
[null,null,null,null,null,null,null,null,null,null,null,null,null,null,null,null,null,null,null,null,null,"Максимальные (расчетные) часовые нагрузки,    Гкал/час",null,null,null,null,"Годовой расход тепла, Гкал/год",null,null,null,null,"действующие нормативы потребления тепловой энергии на отопление, Гкал/ м2хмес","Фактический расход тепловой энергии в базовом периоде по действущим нормативам потребления (по прибору учета), Гкал в год",null,null,null,"Нормативы потребления тепловой энергии в соответствии с приказом от 30.11.2012 N 47, Гкал/ м2","Расход тепловой энергии в базовом периоде по нормативам потребления (по прибору учета)в соответствии с приказом Департамента ЖКХ и государственного жилищного надзора Томской области от 30.11.2012 N 47 (ред. от 23.06.2017), Гкал/ м2"]
[null,null,null,null,null,null,null,null,null,null,null,null,null,null,null,null,null,null,null,null,null,null,null,null,null,null,null,null,null,null,null,null,"на отопление",null,"на ГВС","ВСЕГО",null,"на отопление",null,"на ГВС","ВСЕГО"]
[null,"Показать отдельно для каждого здания",null,"К-кирп.,П-панел.,Д-дер.",null,null,null,null,null,null,null,null,"отопление, qо","вентиляция, qв",null,null,null,null,null,null,null,"отопление","вентиляция","горячее водоснабжение","технология","ВСЕГО","отопление","вентиляция","горячее водоснабжение","технология","ВСЕГО",null,"действующие нормативы","по прибору учета",null,null,null,"нормативы по приказу №47","по прибору учета"]
[1,2,3,4,5,6,7,8,9,10,11,12,13,14,15,16,17,18,19,20,21,22,23,24,25,26,"27",28,"29",30,"31","32",34,35,36,37,38,"39",40,41,42,43,"44"]
[null,"Эталон",null,null,null,null,null,null,null,{"$f":"0.4*H23+I23","v":0},null,null,null,null,{"$f":"IF(H23=0,1.05,1)","v":1.05},{"$f":"1+(0.01*SQRT(2*9.81*F23*(1-(273+$L$8)/(273+L23))+POWER($L$11,2)))","v":1},null,null,null,null,null,{"$f":"$L$12*O23*J23*M23*(L23-$L$8)*P23/1000000","v":0},{"$f":"$L$12*K23*N23*(L23-$L$9)/1000000","v":0},{"$f":"IF(S23=0,0,Q23*R23*(60-5)*(1+T23)/S23/1000000)","v":0},null,{"$f":"SUM(V23:Y23)","v":0},{"$f":"IF((L23-$L$8)=0,0,V23*(L23-$L$10)/(L23-$L$8)*24*$L$5)","v":0},{"$f":"IF((L23-$L$9)=0,0,W23*(L23-$L$10)/(L23-$L$9)*U23)","v":0},{"$f":"IF($L$6=$L$5,Q23*R23*((60-5)*$L$5)*(1+T23)/1000000,(Q23*R23*((60-5)*$L$5+($L$6-$L$5)*0.8*(60-15))*(1+T23)/1000000))","v":0},null,{"$f":"SUM(AA23:AD23)","v":0},null,{"$f":"G23*AF23*12","v":0},null,null,{"$f":"SUM(AG23:AI23)","v":0},null,{"$f":"G23*AK23*9","v":0},null,null,{"$f":"SUM(AL23:AN23)","v":0}]
["1","Собственное потребление"]
["1.1",null,null,null,null,null,"х",null,null,{"$f":"0.4*H25+I25","v":0},null,null,null,null,{"$f":"IF(H25=0,1.05,1)","v":1.05},{"$f":"1+(0.01*SQRT(2*9.81*F25*(1-(273+$L$8)/(273+L25))+POWER($L$11,2)))","v":1},null,null,null,null,null,{"$f":"$L$12*O25*J25*M25*(L25-$L$8)*P25/1000000","v":0},{"$f":"$L$12*K25*N25*(L25-$L$9)/1000000","v":0},{"$f":"IF(S25=0,0,Q25*R25*(60-5)*(1+T25)/S25/1000000)","v":0},null,{"$f":"SUM(V25:Y25)","v":0},{"$f":"IF((L25-$L$8)=0,0,V25*(L25-$L$10)/(L25-$L$8)*24*$L$5)","v":0},{"$f":"IF((L25-$L$9)=0,0,W25*(L25-$L$10)/(L25-$L$9)*U25)","v":0},{"$f":"IF($L$6=$L$5,Q25*R25*((60-5)*$L$5)*(1+T25)/1000000,(Q25*R25*((60-5)*$L$5+($L$6-$L$5)*0.8*(60-15))*(1+T25)/1000000))","v":0},null,{"$f":"SUM(AA25:AD25)","v":0},"х","х","х","х","х","х","х","х","х","х"]
["1.2",null,null,null,null,null,"х",null,null,{"$f":"0.4*H26+I26","v":0},null,null,null,null,{"$f":"IF(H26=0,1.05,1)","v":1.05},{"$f":"1+(0.01*SQRT(2*9.81*F26*(1-(273+$L$8)/(273+L26))+POWER($L$11,2)))","v":1},null,null,null,null,null,{"$f":"$L$12*O26*J26*M26*(L26-$L$8)*P26/1000000","v":0},{"$f":"$L$12*K26*N26*(L26-$L$9)/1000000","v":0},{"$f":"IF(S26=0,0,Q26*R26*(60-5)*(1+T26)/S26/1000000)","v":0},null,{"$f":"SUM(V26:Y26)","v":0},{"$f":"IF((L26-$L$8)=0,0,V26*(L26-$L$10)/(L26-$L$8)*24*$L$5)","v":0},{"$f":"IF((L26-$L$9)=0,0,W26*(L26-$L$10)/(L26-$L$9)*U26)","v":0},{"$f":"IF($L$6=$L$5,Q26*R26*((60-5)*$L$5)*(1+T26)/1000000,(Q26*R26*((60-5)*$L$5+($L$6-$L$5)*0.8*(60-15))*(1+T26)/1000000))","v":0},null,{"$f":"SUM(AA26:AD26)","v":0},"х","х","х","х","х","х","х","х","х","х"]
["ДОБАВИТЬ СТРОКИ"]
[null,"Итого-собст.потребление","х","х","х","х","х",{"$f":"SUM(H25:H25)","v":0},{"$f":"SUM(I25:I25)","v":0},{"$f":"SUM(J25:J25)","v":0},"х","х","х","х","х","х","х",{"$f":"SUM(R25:R27)","v":0},"х","х","х",{"$f":"SUM(V25:V25)","v":0},0,0,0,0,0,0,0,0,0,"х","х","х","х","х","х","х","х","х","х"]
["2","Бюджетные потребители"]
["2.1",null,null,null,null,null,"х",null,null,{"$f":"0.4*H30+I30","v":0},null,null,null,null,{"$f":"IF(H30=0,1.05,1)","v":1.05},{"$f":"1+(0.01*SQRT(2*9.81*F30*(1-(273+$L$8)/(273+L30))+POWER($L$11,2)))","v":1},null,null,null,null,null,{"$f":"$L$12*O30*J30*M30*(L30-$L$8)*P30/1000000","v":0},{"$f":"$L$12*K30*N30*(L30-$L$9)/1000000","v":0},{"$f":"IF(S30=0,0,Q30*R30*(60-5)*(1+T30)/S30/1000000)","v":0},null,{"$f":"SUM(V30:Y30)","v":0},{"$f":"IF((L30-$L$8)=0,0,V30*(L30-$L$10)/(L30-$L$8)*24*$L$5)","v":0},{"$f":"IF((L30-$L$9)=0,0,W30*(L30-$L$10)/(L30-$L$9)*U30)","v":0},{"$f":"IF($L$6=$L$5,Q30*R30*((60-5)*$L$5)*(1+T30)/1000000,(Q30*R30*((60-5)*$L$5+($L$6-$L$5)*0.8*(60-15))*(1+T30)/1000000))","v":0},null,{"$f":"SUM(AA30:AD30)","v":0},"х","х","х","х",{"$f":"SUM(AG30:AI30)","v":0},"х","х","х","х",{"$f":"SUM(AL30:AN30)","v":0}]
["2.2",null,null,null,null,null,"х",null,null,{"$f":"0.4*H31+I31","v":0},null,null,null,null,{"$f":"IF(H31=0,1.05,1)","v":1.05},{"$f":"1+(0.01*SQRT(2*9.81*F31*(1-(273+$L$8)/(273+L31))+POWER($L$11,2)))","v":1},null,null,null,null,null,0,0,0,null,0,0,0,0,null,0,"х","х","х","х",{"$f":"SUM(AG31:AI31)","v":0},"х","х","х","х",{"$f":"SUM(AL31:AN31)","v":0}]
["2.3",null,null,null,null,null,"х",null,null,{"$f":"0.4*H32+I32","v":0},null,null,null,null,{"$f":"IF(H32=0,1.05,1)","v":1.05},{"$f":"1+(0.01*SQRT(2*9.81*F32*(1-(273+$L$8)/(273+L32))+POWER($L$11,2)))","v":1},null,null,null,null,null,{"$f":"$L$12*O32*J32*M32*(L32-$L$8)*P32/1000000","v":0},{"$f":"$L$12*K32*N32*(L32-$L$9)/1000000","v":0},{"$f":"IF(S32=0,0,Q32*R32*(60-5)*(1+T32)/S32/1000000)","v":0},null,{"$f":"SUM(V32:Y32)","v":0},{"$f":"IF((L32-$L$8)=0,0,V32*(L32-$L$10)/(L32-$L$8)*24*$L$5)","v":0},{"$f":"IF((L32-$L$9)=0,0,W32*(L32-$L$10)/(L32-$L$9)*U32)","v":0},{"$f":"IF($L$6=$L$5,Q32*R32*((60-5)*$L$5)*(1+T32)/1000000,(Q32*R32*((60-5)*$L$5+($L$6-$L$5)*0.8*(60-15))*(1+T32)/1000000))","v":0},null,{"$f":"SUM(AA32:AD32)","v":0},"х","х","х","х",{"$f":"SUM(AG32:AI32)","v":0},"х","х","х","х",{"$f":"SUM(AL32:AN32)","v":0}]
["2.4",null,null,null,null,null,"х",null,null,0,null,null,null,null,1.05,1,null,null,null,null,null,0,0,0,null,0,0,0,0,null,0,"х","х","х","х",0,"х","х","х","х",0]
["2.5",null,null,null,null,null,"х",null,null,0,null,null,null,null,1.05,1,null,null,null,null,null,0,0,0,null,0,0,0,0,null,0,"х","х","х","х",0,"х","х","х","х",0]
["2.6",null,null,null,null,null,"х",null,null,0,null,null,null,null,1.05,1,null,null,null,null,null,0,0,0,null,0,0,0,0,null,0,"х","х","х","х",0,"х","х","х","х",0]
["2.7",null,null,null,null,null,"х",null,null,0,null,null,null,null,1.05,1,null,null,null,null,null,0,0,0,null,0,0,0,0,null,0,"х","х","х","х",0,"х","х","х","х",0]
["ДОБАВИТЬ СТРОКИ",null,null,null,null,null,"х",null,null,{"$f":"0.4*H37+I37","v":0},null,null,null,null,{"$f":"IF(H37=0,1.05,1)","v":1.05},{"$f":"1+(0.01*SQRT(2*9.81*F37*(1-(273+$L$8)/(273+L37))+POWER($L$11,2)))","v":1},null,null,null,null,null,{"$f":"$L$12*O37*J37*M37*(L37-$L$8)*P37/1000000","v":0},{"$f":"$L$12*K37*N37*(L37-$L$9)/1000000","v":0},{"$f":"IF(S37=0,0,Q37*R37*(60-5)*(1+T37)/S37/1000000)","v":0},null,{"$f":"SUM(V37:Y37)","v":0},{"$f":"IF((L37-$L$8)=0,0,V37*(L37-$L$10)/(L37-$L$8)*24*$L$5)","v":0},{"$f":"IF((L37-$L$9)=0,0,W37*(L37-$L$10)/(L37-$L$9)*U37)","v":0},{"$f":"IF($L$6=$L$5,Q37*R37*((60-5)*$L$5)*(1+T37)/1000000,(Q37*R37*((60-5)*$L$5+($L$6-$L$5)*0.8*(60-15))*(1+T37)/1000000))","v":0},null,{"$f":"SUM(AA37:AD37)","v":0},"х","х","х","х",{"$f":"SUM(AG37:AI37)","v":0},"х","х","х","х",{"$f":"SUM(AL37:AN37)","v":0}]
[null,"Итого-бюджет","х","х","х","х","х",{"$f":"SUM(H30:H37)","v":0},{"$f":"SUM(I30:I37)","v":0},{"$f":"SUM(J30:J37)","v":0},"х","х","х","х","х","х","х",{"$f":"SUM(R30:R37)","v":0},"х","х","х",{"$f":"SUM(V30:V37)","v":0},{"$f":"SUM(W30:W37)","v":0},{"$f":"SUM(X30:X37)","v":0},{"$f":"SUM(Y30:Y37)","v":0},{"$f":"SUM(V38:Y38)","v":0},{"$f":"SUM(AA30:AA37)","v":0},{"$f":"SUM(AB30:AB37)","v":0},{"$f":"SUM(AC30:AC37)","v":0},{"$f":"SUM(AD30:AD37)","v":0},{"$f":"SUM(AA38:AD38)","v":0},"х","х","х","х",{"$f":"SUM(AG38:AI38)","v":0},"х","х","х","х",{"$f":"SUM(AL38:AN38)","v":0},{"$f":"SUM(AP30:AP37)","v":0}]
["3","Население",null,null,null,null,null,null,null,null,null,null,null,null,null,null,null,null,null,null,null,null,null,null,null,null,null,null,null,null,null,null,null,null,null,{"$f":"SUM(AG39:AH39)","v":0},null,null,null,null,{"$f":"SUM(AL39:AM39)","v":0}]
["3.1",null,null,null,null,null,null,null,null,{"$f":"0.4*H40+I40","v":0},null,null,null,null,{"$f":"IF(H40=0,1.05,1)","v":1.05},{"$f":"1+(0.01*SQRT(2*9.81*F40*(1-(273+$L$8)/(273+L40))+POWER($L$11,2)))","v":1},null,null,null,null,null,{"$f":"$L$12*O40*J40*M40*(L40-$L$8)*P40/1000000","v":0},{"$f":"$L$12*K40*N40*(L40-$L$9)/1000000","v":0},{"$f":"IF(S40=0,0,Q40*R40*(60-5)*(1+T40)/S40/1000000)","v":0},null,{"$f":"SUM(V40:Y40)","v":0},{"$f":"IF((L40-$L$8)=0,0,V40*(L40-$L$10)/(L40-$L$8)*24*$L$5)","v":0},{"$f":"IF((L40-$L$9)=0,0,W40*(L40-$L$10)/(L40-$L$9)*U40)","v":0},{"$f":"IF($L$6=$L$5,Q40*R40*((60-5)*$L$5)*(1+T40)/1000000,(Q40*R40*((60-5)*$L$5+($L$6-$L$5)*0.8*(60-15))*(1+T40)/1000000))","v":0},null,{"$f":"SUM(AA40:AD40)","v":0},null,{"$f":"G40*AF40*12","v":0},null,null,{"$f":"SUM(AG40:AI40)","v":0},null,{"$f":"G40*AK40*9","v":0},null,null,{"$f":"SUM(AL40:AN40)","v":0}]
["3.2",null,null,null,null,null,null,null,null,{"$f":"0.4*H41+I41","v":0},null,null,null,null,1.05,1,null,null,null,null,null,0,0,0,null,0,0,0,0,null,0,null,{"$f":"G41*AF41*12","v":0},null,null,{"$f":"SUM(AG41:AI41)","v":0},null,0,null,null,{"$f":"SUM(AL41:AN41)","v":0}]
["3.3",null,null,null,null,null,null,null,null,0,null,null,null,null,1.05,1,null,null,null,null,null,0,0,0,null,0,0,0,0,null,0,null,0,null,null,0,null,0,null,null,0]
["3.4",null,null,null,null,null,null,null,null,0,null,null,null,null,1.05,1,null,null,null,null,null,0,0,0,null,0,0,0,0,null,0,null,0,null,null,0,null,0,null,null,0]
["ДОБАВИТЬ СТРОКИ",null,null,null,null,null,null,null,null,0,null,null,null,null,1.05,1,null,null,null,null,null,0,0,0,null,0,0,0,0,null,0,null,0,null,null,0,null,0,null,null,0]
[null,"Итого-население","х","х","х","х","х",{"$f":"SUM(H40:H44)","v":0},{"$f":"SUM(I40:I44)","v":0},{"$f":"SUM(J40:J44)","v":0},"х","х","х","х","х","х","х",{"$f":"SUM(R40:R44)","v":0},"х","х","х",{"$f":"SUM(V40:V44)","v":0},0,0,0,0,0,0,0,0,0,"х",{"$f":"SUM(AG40:AG44)","v":0},{"$f":"SUM(AH40:AH44)","v":0},{"$f":"SUM(AI40:AI44)","v":0},{"$f":"SUM(AG45:AI45)","v":0},"х",{"$f":"SUM(AL40:AL44)","v":0},{"$f":"SUM(AM40:AM44)","v":0},{"$f":"SUM(AN40:AN44)","v":0},{"$f":"SUM(AL45:AN45)","v":0},{"$f":"SUM(AP40:AP44)","v":0}]
["4","Прочие потребители",null,null,null,null,null,null,null,null,null,null,null,null,null,null,null,null,null,null,null,null,null,null,null,null,null,null,null,null,null,null,null,null,null,0,null,null,null,null,0]
["4.1",null,null,null,null,null,null,null,null,{"$f":"0.4*H47+I47","v":0},null,null,null,null,{"$f":"IF(H47=0,1.05,1)","v":1.05},{"$f":"1+(0.01*SQRT(2*9.81*F47*(1-(273+$L$8)/(273+L47))+POWER($L$11,2)))","v":1},null,null,null,null,null,{"$f":"$L$12*O47*J47*M47*(L47-$L$8)*P47/1000000","v":0},{"$f":"$L$12*K47*N47*(L47-$L$9)/1000000","v":0},{"$f":"IF(S47=0,0,Q47*R47*(60-5)*(1+T47)/S47/1000000)","v":0},null,{"$f":"SUM(V47:Y47)","v":0},{"$f":"IF((L47-$L$8)=0,0,V47*(L47-$L$10)/(L47-$L$8)*24*$L$5)","v":0},{"$f":"IF((L47-$L$9)=0,0,W47*(L47-$L$10)/(L47-$L$9)*U47)","v":0},{"$f":"IF($L$6=$L$5,Q47*R47*((60-5)*$L$5)*(1+T47)/1000000,(Q47*R47*((60-5)*$L$5+($L$6-$L$5)*0.8*(60-15))*(1+T47)/1000000))","v":0},null,{"$f":"SUM(AA47:AD47)","v":0},"х","х","х","х",{"$f":"SUM(AG47:AI47)","v":0},"х","х","х","х",{"$f":"SUM(AL47:AN47)","v":0}]
["4.2",null,null,null,null,null,null,null,null,0,null,null,null,null,1.05,1,null,null,null,null,null,{"$f":"$L$12*O48*J48*M48*(L48-$L$8)*P48/1000000","v":0},{"$f":"$L$12*K48*N48*(L48-$L$9)/1000000","v":0},{"$f":"IF(S48=0,0,Q48*R48*(60-5)*(1+T48)/S48/1000000)","v":0},null,{"$f":"SUM(V48:Y48)","v":0},{"$f":"IF((L48-$L$8)=0,0,V48*(L48-$L$10)/(L48-$L$8)*24*$L$5)","v":0},{"$f":"IF((L48-$L$9)=0,0,W48*(L48-$L$10)/(L48-$L$9)*U48)","v":0},{"$f":"IF($L$6=$L$5,Q48*R48*((60-5)*$L$5)*(1+T48)/1000000,(Q48*R48*((60-5)*$L$5+($L$6-$L$5)*0.8*(60-15))*(1+T48)/1000000))","v":0},null,{"$f":"SUM(AA48:AD48)","v":0},"х","х","х","х",{"$f":"SUM(AG48:AI48)","v":0},"х","х","х","х",{"$f":"SUM(AL48:AN48)","v":0}]
["4.3",null,null,null,null,null,null,null,null,0,null,null,null,null,1.05,1,null,null,null,null,null,0,0,0,null,0,0,0,0,null,0,"х","х","х","х",0,"х","х","х","х",0]
["4.4",null,null,null,null,null,null,null,null,0,null,null,null,null,1.05,1,null,null,null,null,null,0,0,0,null,0,0,0,0,null,0,"х","х","х","х",0,"х","х","х","х",0]
["4.5",null,null,null,null,null,null,null,null,0,null,null,null,null,1.05,1,null,null,null,null,null,0,0,0,null,0,0,0,0,null,0,"х","х","х","х",0,"х","х","х","х",0]
["4.6",null,null,null,null,null,null,null,null,0,null,null,null,null,1.05,1,null,null,null,null,null,0,0,0,null,0,0,0,0,null,0,"х","х","х","х",0,"х","х","х","х",0]
["4.7",null,null,null,null,null,null,null,null,0,null,null,null,null,1.05,1,null,null,null,null,null,0,0,0,null,0,0,0,0,null,0,"х","х","х","х",0,"х","х","х","х",0]
["4.8",null,null,null,null,null,null,null,null,0,null,null,null,null,1.05,1,null,null,null,null,null,0,0,0,null,0,0,0,0,null,0,"х","х","х","х",0,"х","х","х","х",0]
["4.9",null,null,null,null,null,null,null,null,0,null,null,null,null,1.05,1,null,null,null,null,null,0,0,0,null,0,0,0,0,null,0,"х","х","х","х",0,"х","х","х","х",0]
["4.10",null,null,null,null,null,null,null,null,0,null,null,null,null,1.05,1,null,null,null,null,null,0,0,0,null,0,0,0,0,null,0,"х","х","х","х",0,"х","х","х","х",0]
["4.11",null,null,null,null,null,null,null,null,{"$f":"0.4*H57+I57","v":0},null,null,null,null,{"$f":"IF(H57=0,1.05,1)","v":1.05},{"$f":"1+(0.01*SQRT(2*9.81*F57*(1-(273+$L$8)/(273+L57))+POWER($L$11,2)))","v":1},null,null,null,null,null,{"$f":"$L$12*O57*J57*M57*(L57-$L$8)*P57/1000000","v":0},{"$f":"$L$12*K57*N57*(L57-$L$9)/1000000","v":0},{"$f":"IF(S57=0,0,Q57*R57*(60-5)*(1+T57)/S57/1000000)","v":0},null,{"$f":"SUM(V57:Y57)","v":0},{"$f":"IF((L57-$L$8)=0,0,V57*(L57-$L$10)/(L57-$L$8)*24*$L$5)","v":0},{"$f":"IF((L57-$L$9)=0,0,W57*(L57-$L$10)/(L57-$L$9)*U57)","v":0},{"$f":"IF($L$6=$L$5,Q57*R57*((60-5)*$L$5)*(1+T57)/1000000,(Q57*R57*((60-5)*$L$5+($L$6-$L$5)*0.8*(60-15))*(1+T57)/1000000))","v":0},null,{"$f":"SUM(AA57:AD57)","v":0},"х","х","х","х",{"$f":"SUM(AG57:AI57)","v":0},"х","х","х","х",{"$f":"SUM(AL57:AN57)","v":0}]
["ДОБАВИТЬ СТРОКИ",null,null,null,null,null,null,null,null,{"$f":"0.4*H58+I58","v":0},null,null,null,null,{"$f":"IF(H58=0,1.05,1)","v":1.05},{"$f":"1+(0.01*SQRT(2*9.81*F58*(1-(273+$L$8)/(273+L58))+POWER($L$11,2)))","v":1},null,null,null,null,null,{"$f":"$L$12*O58*J58*M58*(L58-$L$8)*P58/1000000","v":0},{"$f":"$L$12*K58*N58*(L58-$L$9)/1000000","v":0},{"$f":"IF(S58=0,0,Q58*R58*(60-5)*(1+T58)/S58/1000000)","v":0},null,{"$f":"SUM(V58:Y58)","v":0},{"$f":"IF((L58-$L$8)=0,0,V58*(L58-$L$10)/(L58-$L$8)*24*$L$5)","v":0},{"$f":"IF((L58-$L$9)=0,0,W58*(L58-$L$10)/(L58-$L$9)*U58)","v":0},{"$f":"IF($L$6=$L$5,Q58*R58*((60-5)*$L$5)*(1+T58)/1000000,(Q58*R58*((60-5)*$L$5+($L$6-$L$5)*0.8*(60-15))*(1+T58)/1000000))","v":0},null,{"$f":"SUM(AA58:AD58)","v":0},"х","х","х","х",{"$f":"SUM(AG58:AI58)","v":0},"х","х","х","х",{"$f":"SUM(AL58:AN58)","v":0}]
[null,"Итого-прочие потребители","х","х","х","х","х",{"$f":"SUM(H47:H58)","v":0},{"$f":"SUM(I47:I58)","v":0},{"$f":"SUM(J47:J58)","v":0},"х","х","х","х","х","х","х",{"$f":"SUM(R47:R58)","v":0},"х","х","х",{"$f":"SUM(V47:V58)","v":0},{"$f":"SUM(W47:W58)","v":0},{"$f":"SUM(X47:X58)","v":0},{"$f":"SUM(Y47:Y58)","v":0},{"$f":"SUM(V59:Y59)","v":0},{"$f":"SUM(AA47:AA58)","v":0},{"$f":"SUM(AB47:AB58)","v":0},{"$f":"SUM(AC47:AC58)","v":0},{"$f":"SUM(AD47:AD58)","v":0},{"$f":"SUM(AA59:AD59)","v":0},"х","х","х","х",{"$f":"SUM(AG59:AI59)","v":0},"х","х","х","х",{"$f":"SUM(AL59:AN59)","v":0},{"$f":"SUM(AP47:AP58)","v":0}]
[]
["ВСЕГО по котельной, в том числе:",null,"х","х","х","х","х",{"$f":"H28+H38+H45+H59","v":0},{"$f":"I28+I38+I45+I59","v":0},{"$f":"J28+J38+J45+J59","v":0},"х","х","х","х","х","х","х",{"$f":"R28+R38+R45+R59","v":0},"х","х","х",{"$f":"V28+V38+V45+V59","v":0},0,0,0,0,0,0,0,0,0,"х",{"$f":"AG45","v":0},{"$f":"AH45","v":0},{"$f":"AI45","v":0},{"$f":"AJ45","v":0},"х",{"$f":"AL45","v":0},{"$f":"AM45","v":0},{"$f":"AN45","v":0},{"$f":"AO45","v":0},{"$f":"AP28+AP38+AP45+AP59","v":0}]
["собственное потребление",null,null,null,null,null,null,{"$f":"H28","v":0},{"$f":"I28","v":0},{"$f":"J28","v":0},null,null,null,null,null,null,null,{"$f":"R28","v":0},null,null,null,{"$f":"V28","v":0},0,0,0,0,0,0,0,0,0,"х","х","х","х","х","х","х","х","х","х",{"$f":"AP28","v":0}]
["сторонние потребители, всего",null,null,null,null,null,null,{"$f":"H61-H62","v":0},{"$f":"I61-I62","v":0},{"$f":"J61-J62","v":0},null,null,null,null,null,null,null,{"$f":"R61-R62","v":0},null,null,null,{"$f":"V61-V62","v":0},0,0,0,0,0,0,0,0,0,"х","х","х","х","х","х","х","х","х","х",{"$f":"AP61-AP62","v":0}]
["в том числе:","бюджет",null,null,null,null,null,{"$f":"H38","v":0},{"$f":"I38","v":0},{"$f":"J38","v":0},null,null,null,null,null,null,null,{"$f":"R38","v":0},null,null,null,{"$f":"V38","v":0},0,0,0,0,0,0,0,0,0,"х","х","х","х","х","х","х","х","х","х",{"$f":"AP38","v":0}]
[null,"население",null,null,null,null,null,{"$f":"H45","v":0},{"$f":"I45","v":0},{"$f":"J45","v":0},null,null,null,null,null,null,null,{"$f":"R45","v":0},null,null,null,{"$f":"V45","v":0},0,0,0,0,0,0,0,0,0,"х",0,0,0,0,"х",0,0,0,0,0]
[null,"прочие",null,null,null,null,null,{"$f":"H59","v":0},{"$f":"I59","v":0},{"$f":"J59","v":0},null,null,null,null,null,null,null,{"$f":"R59","v":0},null,null,null,{"$f":"V59","v":0},0,0,0,0,0,0,0,0,0,"х","х","х","х","х","х","х","х","х","х",{"$f":"AP59","v":0}]
[]
["5","Отключенные объекты"]
["1.2"]
["5.2"]
["5.3"]
[null,"Итого-отключенные объекты",null,null,null,null,null,{"$f":"SUM(H69:H71)","v":0},{"$f":"SUM(I69:I71)","v":0},{"$f":"SUM(J69:J71)","v":0},null,null,null,null,null,null,null,{"$f":"SUM(R69:R71)","v":0},null,null,null,{"$f":"SUM(V69:V71)","v":0},0,0,0,0,0,0,0,0,0]
["Руководитель организации _____________________ /________________/"]
[null,null,"М.П."]
["Исполнитель _____________________ /__________________/ тел. "]
[null,"(Должность, Ф.И.О.)"]

{"sheet":"ОТОПЛЕНИЕ","index":4,"n_rows":47,"n_cols":23,"rows_kept":47,"cut":false,"hidden":false,"merged":[[19,15,19,16],[21,15,21,16],[12,1,16,1],[12,2,16,2],[12,3,16,3],[8,13,8,14],[12,22,16,22],[12,21,16,21],[17,15,18,15],[17,16,18,16],[42,0,42,1],[42,8,42,9],[28,22,29,22],[22,15,22,16],[22,1,22,3],[5,7,5,11],[6,7,6,11],[30,0,30,11],[40,0,40,11],[43,5,43,7],[17,4,18,4],[17,5,18,5],[17,12,18,12],[15,9,15,10],[42,5,42,7],[17,10,18,10],[0,10,0,22],[17,22,18,22],[20,0,20,11],[13,6,13,11],[13,4,16,4],[13,5,16,5],[14,11,16,11],[2,12,2,15],[2,7,2,10],[3,7,3,10],[3,12,3,15],[14,6,16,6],[14,7,16,7],[14,8,14,10],[15,8,16,8],[15,18,15,19],[2,17,2,20],[12,0,16,0],[47,0,47,1],[17,3,18,3],[17,2,18,2],[46,1,46,3],[17,0,18,0],[17,1,18,1],[17,6,18,6],[17,7,18,7],[17,14,18,14],[43,0,43,1],[43,8,43,9],[45,8,45,11],[45,4,45,7],[45,1,45,3],[3,17,3,20],[13,12,13,14],[14,12,16,12],[14,13,14,14],[15,13,16,13],[15,14,16,14],[13,15,13,20],[12,15,12,20],[12,4,12,14],[14,15,16,15],[14,16,16,16],[14,17,14,19],[14,20,16,20],[15,17,16,17],[4,7,4,13],[8,4,8,5]]}
[null,null,null,null,null,null,null,null,null,null,"Приложение № 5 к письму Департамента тарифного регулирования Томской области от_______________ №_________"]
[null,null,null,null,null,null,null,null,null,null,null,null,null,null,null,null,null,null,null,null,null,null,"Таблица № 4"]
["Расчет объемов услуг по отоплению, оказанных населению в 2016 году, прогноз на 2017 год",null,null,null,null,null,null,null,null,null,null,"по"]
[null,null,null,null,null,null,null,"(наименование организации, оказывающей коммунальную услугу населению)",null,null,null,null,"(наименование сельского поселения, городского округа, города)",null,null,null,null,"(наименование района)"]
[null,null,null,null,null,null,null,"Сверка объемов коммунальной услуги за 2016 год "]
[null,null,null,null,null,null,null,"Объем коммунальной услуги за 2016 год, представленный организацией в Департамент тарифного регулирования Томской области для формирования тарифа на 2018 год"]
[null,null,null,null,null,null,null,"Разница с данными, представленными в таблице\n (стр.6гр.M-стр.17гр.M)",null,null,null,null,{"$f":"M6-M20","v":0},{"$f":"IF(M7=0,\"ВЕРНО\",\"ОШИБКА\")","v":"ВЕРНО"}]
[]
[null,null,null,null,"Тариф с 01.07.2016",null,null,null,null,null,null,null,null,"Тариф с 01.07.2017"]
[]
[null,"по нормативам","Дома до 1999 года постройки включительно"]
[null,"по приборам учета","Дома после 1999 года постройки "]
["Наименование населенного пункта","Этажность ","Период постройки дома (выбрать из всплывающего списка)","Способ учета объема коммунальных услуг: по приборам учета, по нормативам\n(выбрать из всплывающего списка)","2016 год (факт)",null,null,null,null,null,null,null,null,null,null,"Прогноз при переходе на новые нормативы по приказу ДЖКХ от 30.11.2012 № 47",null,null,null,null,null,"Рост платы граждан за потребление коммунальной услуги декабрь 2017 к декабрю 2016, %","Примечание"]
[null,null,null,null,"Площадь помещений, по которым оказывается услуга на 31.12.2016, кв.м","Численность населения, которому оказывается услуга, чел. ","Декабрь 2016 года (факт)",null,null,null,null,null,"Объем услуг всего за 2016 год - всего (факт)",null,null,"Декабрь 2017 года (прогноз)"]
[null,null,null,null,null,null,"*Тариф, действующий с 01.07.2016, \nруб./Гкал","Норматив потребления услуг в месяц по 1/12, действующий в декабре 2016 года, \nГкал/кв.м","Объем услуг за декабрь 2016 года , Гкал",null,null,"Выручка, тыс.руб.","Всего","в том числе:",null,"*Тариф, действующий с 01.07.2017, \nруб./Гкал","**Норматив потребления услуг (согласно приказа Департамента ЖКХ от 30.11.2012 № 47), \nм3 ","Объем услуг за декабрь 2017 года , Гкал",null,null,"Выручка, тыс.руб."]
[null,null,null,null,null,null,null,null,"Всего","в том числе:",null,null,null,"По нормативам\n\n","По приборам учета (общедомовым, индивидуальным)",null,null,"Всего","в том числе:"]
[null,null,null,null,null,null,null,null,null," По нормативам \n","По приборам учета (общедомовым, индивидуальным)",null,null,null,null,null,null,null," По нормативам \n","По приборам учета (общедомовым, индивидуальным)"]
[1,2,3,4,5,6,7,8,9,10,11,12,13,14,15,16,17,18,19,20,21,22,23]
[null,null,null,null,null,null,null,null," (гр.10+гр.11)","(гр.5*гр.8)",null,"(гр.7*гр.10(гр.11)/1000)",null,"(гр.10*12 месяцев)",null,null,null," (гр.19+гр.20)","(гр.5*гр.17)","гр.11","(гр.16*гр.19(гр.20)/1000)","гр.21/гр.12*100-100"]
["Всего по муниципальному образованию",null,null,null,{"$f":"E22+E32","v":0},{"$f":"F22+F32","v":0},null,null,{"$f":"J20+K20","v":0},{"$f":"J22+J32","v":0},{"$f":"K22+K32","v":0},{"$f":"L22+L32","v":0},{"$f":"N20+O20","v":0},{"$f":"N22+N32","v":0},{"$f":"O22+O32","v":0},null,null,{"$f":"S20+T20","v":0},{"$f":"S22+S32","v":0},{"$f":"T22+T32","v":0},{"$f":"U22+U32","v":0},{"$f":"U20/L20-1","v":{"$error":"#DIV/0!"}}]
["Многоквартирные дома ( в т.ч. двухквартирные)"]
["Всего по многоквартирным домам, в том числе:",null,null,null,{"$f":"E23+E27","v":0},{"$f":"F23+F27","v":0},null,null,{"$f":"J22+K22","v":0},{"$f":"J23+J27","v":0},{"$f":"K23+K27","v":0},{"$f":"L23+L27","v":0},{"$f":"N22+O22","v":0},{"$f":"N23+N27","v":0},{"$f":"O23+O27","v":0},null,null,{"$f":"S22+T22","v":0},{"$f":"S23+S27","v":0},{"$f":"T23+T27","v":0},{"$f":"U23+U27","v":0},{"$f":"U22/L22-1","v":{"$error":"#DIV/0!"}}]
["Всего по жилым помещениям",null,null,null,{"$f":"SUM(E24:E26)","v":0},{"$f":"SUM(F24:F26)","v":0},null,null,{"$f":"J23+K23","v":0},{"$f":"SUM(J24:J26)","v":0},{"$f":"SUM(K24:K26)","v":0},{"$f":"SUM(L24:L26)","v":0},{"$f":"N23+O23","v":0},{"$f":"SUM(N24:N26)","v":0},{"$f":"SUM(O24:O26)","v":0},null,null,{"$f":"S23+T23","v":0},{"$f":"SUM(S24:S26)","v":0},{"$f":"SUM(T24:T26)","v":0},{"$f":"SUM(U24:U26)","v":0},{"$error":"#DIV/0!"}]
[null,null,"Дома до 1999 года постройки включительно","по нормативам",null,null,{"$f":"$G$9","v":0},null,"х",{"$f":"IF(D24=$B$11,E24*H24,0)","v":0},null,{"$f":"IF(D24=$B$11,G24*J24/1000,IF(D24=$B$12,G24*K24/1000))","v":0},"х",{"$f":"IF(D24=$B$11,J24*12,0)","v":0},null,{"$f":"$P$9","v":0},null,"х",{"$f":"IF(D24=$B$11,E24*Q24,0)","v":0},{"$f":"K24","v":0},{"$f":"IF(D24=$B$11,S24*P24/1000,IF(D24=$B$12,T24*P24/1000))","v":0},{"$error":"#DIV/0!"}]
[null,null,"Дома до 1999 года постройки включительно","по нормативам",null,null,{"$f":"$G$9","v":0},null,"х",{"$f":"IF(D25=$B$11,E25*H25,0)","v":0},null,{"$f":"IF(D25=$B$11,G25*J25/1000,IF(D25=$B$12,G25*K25/1000))","v":0},"х",{"$f":"IF(D25=$B$11,J25*12,0)","v":0},null,{"$f":"$P$9","v":0},null,"х",{"$f":"IF(D25=$B$11,E25*Q25,0)","v":0},{"$f":"K25","v":0},{"$f":"IF(D25=$B$11,S25*P25/1000,IF(D25=$B$12,T25*P25/1000))","v":0},{"$f":"U25/L25-1","v":{"$error":"#DIV/0!"}}]
["ДОБАВИТЬ СТРОКИ"]
["Отопление бань, расположенных на земельном участке - всего, в том числе:",null,null,null,{"$f":"SUM(E28:E29)","v":0},{"$f":"SUM(F28:F29)","v":0},null,null,{"$f":"J27+K27","v":0},{"$f":"SUM(J28:J29)","v":0},{"$f":"SUM(K28:K29)","v":0},{"$f":"SUM(L28:L29)","v":0},{"$f":"N27+O27","v":0},{"$f":"SUM(N28:N29)","v":0},{"$f":"SUM(O28:O29)","v":0},null,null,{"$f":"S27+T27","v":0},{"$f":"SUM(S28:S29)","v":0},{"$f":"SUM(T28:T29)","v":0},{"$f":"SUM(U28:U29)","v":0},{"$error":"#DIV/0!"}]
[null,"х",null,"по нормативам",null,null,{"$f":"$G$9","v":0},null,"х",{"$f":"IF(D28=$B$11,E28*H28,0)","v":0},null,{"$f":"IF(D28=$B$11,G28*J28/1000,IF(D28=$B$12,G28*K28/1000))","v":0},"х",{"$f":"IF(D28=$B$11,J28*12,0)","v":0},null,{"$f":"$P$9","v":0},null,"х",{"$f":"IF(D28=$B$11,E28*Q28,0)","v":0},{"$f":"K28","v":0},{"$f":"IF(D28=$B$11,S28*P28/1000,IF(D28=$B$12,T28*P28/1000))","v":0},{"$error":"#DIV/0!"}]
["ДОБАВИТЬ СТРОКИ"]
[]
["Частные дома"]
["Всего по частным домам, в том числе:",null,null,null,{"$f":"E33+E37","v":0},{"$f":"F33+F37","v":0},null,null,{"$f":"J32+K32","v":0},{"$f":"J33+J37","v":0},{"$f":"K33+K37","v":0},{"$f":"L33+L37","v":0},{"$f":"N32+O32","v":0},{"$f":"N33+N37","v":0},{"$f":"O33+O37","v":0},null,null,{"$f":"S32+T32","v":0},{"$f":"S33+S36","v":0},{"$f":"T33+T36","v":0},{"$f":"U33+U36","v":0},{"$f":"U32/L32-1","v":{"$error":"#DIV/0!"}}]
["Всего по по жилым помещениям в частных домах",null,null,null,{"$f":"SUM(E34:E36)","v":0},{"$f":"SUM(F34:F36)","v":0},null,null,{"$f":"J33+K33","v":0},{"$f":"SUM(J34:J36)","v":0},{"$f":"SUM(K34:K36)","v":0},{"$f":"SUM(L34:L36)","v":0},{"$f":"N33+O33","v":0},{"$f":"O33+W33","v":0},{"$f":"SUM(O34:O36)","v":0},null,{"$f":"R33+S33","v":0},{"$f":"S33+T33","v":0},{"$f":"SUM(S34:S36)","v":0},{"$f":"SUM(T34:T36)","v":0},{"$f":"SUM(U34:U36)","v":0},{"$error":"#DIV/0!"}]
[null,null,"Дома после 1999 года постройки ","по нормативам",null,null,{"$f":"$G$9","v":0},null,"х",{"$f":"IF(D34=$B$11,E34*H34,0)","v":0},null,{"$f":"IF(D34=$B$11,G34*J34/1000,IF(D34=$B$12,G34*K34/1000))","v":0},"х",{"$f":"IF(D34=$B$11,J34*12,0)","v":0},null,{"$f":"$P$9","v":0},null,"х",{"$f":"IF(D34=$B$11,E34*Q34,0)","v":0},{"$f":"K34","v":0},{"$f":"IF(D34=$B$11,S34*P34/1000,IF(D34=$B$12,T34*P34/1000))","v":0},{"$f":"U34/L34-1","v":{"$error":"#DIV/0!"}}]
[null,null,"Дома после 1999 года постройки ","по нормативам",null,null,{"$f":"$G$9","v":0},null,"х",{"$f":"IF(D35=$B$11,E35*H35,0)","v":0},null,{"$f":"IF(D35=$B$11,G35*J35/1000,IF(D35=$B$12,G35*K35/1000))","v":0},"х",{"$f":"IF(D35=$B$11,J35*12,0)","v":0},null,{"$f":"$P$9","v":0},null,"х",{"$f":"IF(D35=$B$11,E35*Q35,0)","v":0},{"$f":"K35","v":0},{"$f":"IF(D35=$B$11,S35*P35/1000,IF(D35=$B$12,T35*P35/1000))","v":0},{"$f":"U35/L35-1","v":{"$error":"#DIV/0!"}}]
["ДОБАВИТЬ СТРОКИ"]
["Отопление бань, расположенных на земельном участке - всего, в том числе:",null,null,null,{"$f":"SUM(E38:E39)","v":0},{"$f":"SUM(F38:F39)","v":0},null,null,{"$f":"J37+K37","v":0},{"$f":"SUM(J38:J39)","v":0},{"$f":"SUM(K38:K39)","v":0},{"$f":"SUM(L38:L39)","v":0},{"$f":"N37+O37","v":0},{"$f":"SUM(N38:N39)","v":0},{"$f":"SUM(O38:O39)","v":0},null,{"$f":"R37+S37","v":0},{"$f":"SUM(R38:R39)","v":0},{"$f":"SUM(S38:S39)","v":0},{"$f":"SUM(T38:T39)","v":0},{"$f":"SUM(U38:U39)","v":0},{"$error":"#DIV/0!"}]
[null,"х",null,"по нормативам",null,null,{"$f":"$G$9","v":0},null,"х",{"$f":"IF(D38=$B$11,E38*H38,0)","v":0},null,{"$f":"IF(D38=$B$11,G38*J38/1000,IF(D38=$B$12,G38*K38/1000))","v":0},"х",{"$f":"IF(D38=$B$11,J38*12,0)","v":0},null,{"$f":"$P$9","v":0},null,"х",{"$f":"IF(D38=$B$11,E38*Q38,0)","v":0},{"$f":"K38","v":0},{"$f":"IF(D38=$B$11,S38*P38/1000,IF(D38=$B$12,T38*P38/1000))","v":0},{"$error":"#DIV/0!"}]
["ДОБАВИТЬ СТРОКИ"]
[]
["*Тариф по организации коммунального комплекса для населения указывается с НДС - для организаций на общей системе налогообложения, с учетом инвестиционной надбавки"]
[]
["Руководитель ресурсоснабжающей организации_______________________________",null,null,"МП",null,"___________________________",null,null,"______________"]
["(наименование организации)",null,null,null,null,"             (Фамилия,имя,отчетство)",null,null,"(телефон)"]
[]
["Исполнитель","___________________________",null,null,"Контактный телефон______________",null,null,null,"Электронная почта:_________________"]
[null,"        (Фамилия,имя,отчетство  полностью)"]

{"sheet":"Нормативы ХВС ГВС ВОВ","index":5,"n_rows":20,"n_cols":5,"rows_kept":20,"cut":false,"hidden":false,"merged":[[0,0,0,4]]}
["Нормативы потребления коммунальных услуг по холодному водоснабжению, горячему водоснабжению и водоотведению в жилых помещениях на территории Томской области\nсогласно приложению №4 приказа Департамента ЖКХ и государственного жилищного надзора Томской области от 30.11.2012 № 47 \"Об утверждении нормативов потребления коммунальных услуг на территории Томской области\"\n"]
[null,null,null,null,"куб. м в месяц на 1 человека"]
[null,null,"ХВС","ГВС","Водоотведение"]
["1.","1. Жилые помещения с холодным водоснабжением из уличной водоразборной колонки (колодца)",0.91]
["2.","2. Жилые помещения с централизованным водоснабжением без водоотведения и горячего водоснабжения, оборудованные раковинами, мойками кухонными",1.77]
["3.","3. Жилые помещения с централизованным водоснабжением и водоотведением без горячего водоснабжения",2.7,null,2.7]
["4.","4. Жилые помещения с централизованным водоснабжением и водоотведением без горячего водоснабжения, имеется ванна",3.77,null,3.77]
["5.","5. Жилые помещения с централизованным водоснабжением и без централизованного водоотведения и горячего водоснабжения",2.42]
["6.","6. Жилые помещения с централизованным водоснабжением и водоотведением без горячего водоснабжения и унитазов, оборудованные мойками кухонными",1.63,null,1.63]
["7.","7. Жилые помещения с централизованным водоснабжением, водоотведением и горячим водоснабжением",3.05,1.1599999999999999,4.21]
["8.","8. Жилые помещения с централизованным водоснабжением, горячим водоснабжением и без централизованного водоотведения",2.23,0.91]
["9.","9. Жилые помещения с централизованным водоснабжением, горячим водоснабжением и без централизованного водоотведения и унитазов",1.45,0.91]
["10.","10. Жилые помещения с централизованным водоснабжением, водоотведением и горячим водоснабжением, оборудованные раковинами, мойками кухонными, душами ",4.5999999999999996,2.5099999999999998,7.11]
["11.","11. Жилые помещения с централизованным водоснабжением, водоотведением и горячим водоснабжением, оборудованные сидячими ваннами, раковинами и душем",5.0199999999999996,3.02,8.0399999999999991]
["12.","12. Жилые помещения с централизованным водоснабжением, водоотведением и горячим водоснабжением, оборудованные ваннами длиной 1500-1700 мм, раковинами и душем ",5.0999999999999996,3.11,8.2100000000000009]
["13.","13. Жилые помещения с централизованным водоснабжением и горячим водоснабжением, оборудованные ваннами, раковинами и душем, и без централизованного водоотведения",3.77,2.29]
["14.","14. Жилые помещения с централизованным водоснабжением и водоотведением, оборудованные ваннами, раковинами и душем, и горячим водоснабжением из автономных водоподогревателей",7.14,null,7.14]
["15.","15. Жилые помещения с централизованным водоснабжением, оборудованные ваннами, раковинами и душем, горячим водоснабжением из автономных водоподогревателей и без централизованного водоотведения",6.06]
["16.","16. Жилые помещения в общежитиях с водопроводом и с общими душевыми",2.39,1.29,3.68]
["17.","17. Жилые помещения в общежитиях с водопроводом и с общими кухнями и блоками душевых на этажах при жилых комнатах в каждой секции здания",2.5299999999999998,1.43,3.96]

{"sheet":"нормативы ОДН ХВС ГВС","index":6,"n_rows":28,"n_cols":5,"rows_kept":28,"cut":false,"hidden":false,"merged":[[0,0,0,4],[1,3,1,4],[2,0,4,0],[2,1,4,1],[2,2,2,3],[2,4,4,4],[3,2,4,2],[3,3,4,3]]}
["Нормативы потребления коммунальных услуг по холодному и горячему водоснабжению на общедомовые нужды на территории Томской области согласно приложению №5 приказа Департамента ЖКХ и государственного жилищного надзора Томской области от 30.11.2012 № 47 \"Об утверждении нормативов потребления коммунальных услуг на территории Томской области\"\n"]
[null,null,null,"куб. м в месяц на 1 кв. м общей площади"]
["N","Категория жилых помещений","Норматив потребления коммунальной услуги",null,"Этажность"]
[null,null,"холодного водоснабжения","горячего водоснабжения"]
[]
[1,"1. Жилые помещения с централизованным водоснабжением без водоотведения и горячего водоснабжения, оборудованные раковинами, мойками кухонными",5.0999999999999997E-2,null,"от 1 до 2"]
[2,"2. Жилые помещения с централизованным водоснабжением и водоотведением без горячего водоснабжения",4.5999999999999999E-2,null,"от 1 до 2"]
[3,"3. Жилые помещения с централизованным водоснабжением и водоотведением без горячего водоснабжения, имеется ванна",4.5999999999999999E-2,null,"от 1 до 2"]
[4,"4. Жилые помещения с централизованным водоснабжением и без централизованного водоотведения и горячего водоснабжения",4.5999999999999999E-2,null,"от 1 до 2"]
[5,"5. Жилые помещения с централизованным водоснабжением и водоотведением без горячего водоснабжения и унитазов, оборудованные мойками кухонными",4.5999999999999999E-2,null,"от 1 до 2"]
[6,"6. Жилые помещения с централизованным водоснабжением, водоотведением и горячим водоснабжением",4.2999999999999997E-2,4.2999999999999997E-2,"от 1 до 3"]
["6а","6а. Жилые помещения с централизованным водоснабжением, водоотведением и горячим водоснабжением",3.2000000000000001E-2,3.2000000000000001E-2,"от 4 и более"]
[7,"7. Жилые помещения с централизованным водоснабжением, горячим водоснабжением и без централизованного водоотведения",4.2999999999999997E-2,4.2999999999999997E-2,"от 1 до 2"]
[8,"8. Жилые помещения с централизованным водоснабжением, горячим водоснабжением и без централизованного водоотведения и унитазов",4.2999999999999997E-2,4.2999999999999997E-2,"от 1 до 2"]
[9,"9. Жилые помещения с централизованным водоснабжением, водоотведением и горячим водоснабжением, оборудованные раковинами, мойками кухонными, душами",3.3000000000000002E-2,3.3000000000000002E-2,"от 1 до 3"]
["9а","9а. Жилые помещения с централизованным водоснабжением, водоотведением и горячим водоснабжением, оборудованные раковинами, мойками кухонными, душами",4.5999999999999999E-2,4.5999999999999999E-2,"от 4 до 6"]
["9б","9б. Жилые помещения с централизованным водоснабжением, водоотведением и горячим водоснабжением, оборудованные раковинами, мойками кухонными, душами",3.7999999999999999E-2,3.7999999999999999E-2,"от 7 и более"]
[10,"10. Жилые помещения с централизованным водоснабжением, водоотведением и горячим водоснабжением, оборудованные сидячими ваннами, раковинами и душем",4.1000000000000002E-2,4.1000000000000002E-2,"от 1 до 3"]
["10а","10а. Жилые помещения с централизованным водоснабжением, водоотведением и горячим водоснабжением, оборудованные сидячими ваннами, раковинами и душем",3.5999999999999997E-2,3.5999999999999997E-2,"от 4 до 6"]
["10б","10б. Жилые помещения с централизованным водоснабжением, водоотведением и горячим водоснабжением, оборудованные сидячими ваннами, раковинами и душем",2.5000000000000001E-2,2.5000000000000001E-2,"от 7 и более"]
[11,"11. Жилые помещения с централизованным водоснабжением, водоотведением и горячим водоснабжением, оборудованные ваннами длиной 1500 - 1700 мм, раковинами и душем",4.1000000000000002E-2,4.1000000000000002E-2,"от 1 до 3"]
["11а","11а. Жилые помещения с централизованным водоснабжением, водоотведением и горячим водоснабжением, оборудованные ваннами длиной 1500 - 1700 мм, раковинами и душем",3.5999999999999997E-2,3.5999999999999997E-2,"от 4 до 6"]
["11б","11б.Жилые помещения с централизованным водоснабжением, водоотведением и горячим водоснабжением, оборудованные ваннами длиной 1500 - 1700 мм, раковинами и душем",2.5000000000000001E-2,2.5000000000000001E-2,"от 7 и более"]
[12,"12. Жилые помещения с централизованным водоснабжением и горячим водоснабжением, оборудованные ваннами, раковинами и душем, и без централизованного водоотведения",4.1000000000000002E-2,4.1000000000000002E-2,"от 1 до 3"]
[13,"13. Жилые помещения с централизованным водоснабжением и водоотведением, оборудованные ваннами, раковинами и душем, и горячим водоснабжением из автономных водонагревателей",4.1000000000000002E-2,null,"от 1 до 3"]
[14,"14. Жилые помещения с централизованным водоснабжением, оборудованные ваннами, раковинами и душем, горячим водоснабжением из автономных водонагревателей и без централизованного водоотведения",4.1000000000000002E-2,null,"от 1 до 3"]
[15,"15. Жилые помещения в общежитиях с водопроводом и с общими душевыми",3.6999999999999998E-2,3.6999999999999998E-2,"от 4 до 6"]
[16,"16. Жилые помещения в общежитиях с водопроводом и с общими кухнями и блоками душевых на этажах при жилых комнатах в каждой секции здания",6.2E-2,6.2E-2,"от 6 и более"]

{"sheet":"нормативы ХВС бани,полив, скот","index":7,"n_rows":23,"n_cols":9,"rows_kept":23,"cut":false,"hidden":false,"merged":[[0,0,0,8],[2,1,3,1],[2,2,3,2],[2,3,3,3],[2,4,2,8]]}
["Нормативы потребления коммунальной услуги по холодному водоснабжению при использовании земельного участка и надворных построек на территории Томской области согласно приложению №4 приказа Департамента ЖКХ и государственного жилищного надзора Томской области от 30.11.2012 № 47 \"Об утверждении нормативов потребления коммунальных услуг на территории Томской области\"\n"]
[]
["N","Направление использования коммунального ресурса","Единица измерения","Норматив потребления","Норматив потребления при наличии технической возможности установки индивидуальных приборов учета в жилых домах, расположенных на земельном участке с надворными постройками"]
["пп",null,null,null,"с 1 января 2015 г. по 30 июня 2015 г.","с 1 июля 2015 г. по 31 декабря 2015 г.","с 1 января 2016 г. по 30 июня 2016 г.","с 1 июля 2016 г. по 31 декабря 2016 г.","с 2017 года"]
[null,"1.Полив земельного участка дождевальным способом (водопровод в доме)","куб.м в месяц на 1 кв. м земельного участка",0.03,3.3000000000000002E-2,3.5999999999999997E-2,4.2000000000000003E-2,4.4999999999999998E-2,4.8000000000000001E-2]
[null,"2.Полив земельного участка ручным способом (уличная колонка)","куб.м в месяц на 1 кв. м земельного участка",2.1999999999999999E-2,2.4E-2,2.5999999999999999E-2,3.1E-2,3.3000000000000002E-2,3.5000000000000003E-2]
[]
[null,"3. Водоснабжение  и приготовление пищи для лошадей","куб. метр в месяц на 1 голову",1.82,2,2.1800000000000002,2.5499999999999998,2.73,2.91]
[null,"4. Водоснабжение  и приготовление пищи для жеребенка","куб. метр в месяц на 1 голову",1.37,1.51,1.64,1.92,2.06,2.19]
[null,"5. Водоснабжение  и приготовление пищи для свиньи (взрослое поголовье и молодняк)","куб. метр в месяц на 1 голову",0.46,0.51,0.55000000000000004,0.64,0.69,0.74]
[null,"6. Водоснабжение  и приготовление пищи для поросенка","куб. метр в месяц на 1 голову",0.15,0.17,0.18,0.21,0.23,0.24]
[null,"7. Водоснабжение  и приготовление пищи для овцы (взрослое поголовье)","куб. метр в месяц на 1 голову",0.14000000000000001,0.15,0.17,0.2,0.21,0.22]
[null,"8.Водоснабжение  и приготовление пищи для ягненка","куб. метр в месяц на 1 голову",0.06,7.0000000000000007E-2,7.0000000000000007E-2,0.08,0.09,0.1]
[null,"9. Водоснабжение  и приготовление пищи для козы взрослой","куб. метр в месяц на 1 голову",0.08,0.09,0.1,0.11,0.12,0.13]
[null,"10. Водоснабжение  и приготовление пищи для козы (молодняк)","куб. метр в месяц на 1 голову",0.05,0.06,0.06,7.0000000000000007E-2,0.08,0.08]
[null,"11. Водоснабжение  и приготовление пищи для крупнорогатого скота (взрослое поголовье)","куб. метр в месяц на 1 голову",2.13,2.34,2.56,2.98,3.2,3.41]
[null,"12. Водоснабжение  и приготовление пищи для крупнорогатого скота (теленок в возрасте до 6 месяцев)","куб. метр в месяц на 1 голову",0.55000000000000004,0.61,0.66,0.77,0.83,0.88]
[null,"13.Водоснабжение  и приготовление пищи для крупнорогатого скота (молодняк в возрасте до 12 мес.)","куб. метр в месяц на 1 голову",0.73,0.8,0.88,1.02,1.1000000000000001,1.17]
[null,"14. Водоснабжение  и приготовление пищи для крупнорогатого скота (молодняк в возрасте до 18 мес.)","куб. метр в месяц на 1 голову",1.06,1.17,1.27,1.48,1.59,1.7]
[null,"15. Водоснабжение  и приготовление пищи для курицы, индейки","куб. метр в месяц на 1 голову",0.01,0.01,0.01,0.01,0.02,0.02]
[null,"16. Водоснабжение  и приготовление пищи для утки, гуся","куб. метр в месяц на 1 голову",0.05,0.06,0.06,7.0000000000000007E-2,0.08,0.08]
[null,"17. Баня при наличии водопровода","куб. метр в месяц на 1 человека",0.3,"-","-","-","-","-"]
[null,"18. Баня при водоснабжении из уличной колонки","куб. метр в месяц на 1 человека",0.2,"-","-","-","-","-"]

{"sheet":"нормативы отопление жилые пом.","index":8,"n_rows":27,"n_cols":29,"rows_kept":27,"cut":false,"hidden":false,"merged":[[15,0,15,12],[16,1,16,12],[0,0,0,12],[1,0,1,12],[4,0,5,0],[4,1,4,12],[5,1,5,12],[6,1,6,12],[0,16,0,28],[15,16,15,28],[16,17,16,28],[4,16,5,16],[4,17,4,28],[5,17,5,28],[6,17,6,28]]}
["Нормативы потребления коммунальной услуги по отоплению в жилых и нежилых помещениях на территории Томской области в отопительный период согласно приложению № 6 к приказу Департамента ЖКХ и государственного жилищного надзора Томской области от 30.11.2012 № 47 \"Об утверждении нормативов потребления коммунальных услуг на территории Томской области\", пересчитанные на 1/12 для равномерной оплаты в течение года\n",null,null,null,null,null,null,null,null,null,null,null,null,null,null,null,"Нормативы потребления коммунальной услуги по отоплению в жилых и нежилых помещениях на территории Томской области в отопительный период согласно приложению № 6 к приказу Департамента ЖКХ и государственного жилищного надзора Томской области от 30.11.2012 № 47 \"Об утверждении нормативов потребления коммунальных услуг на территории Томской области\"\n"]
["Нормативы пересчитаны на потребление по 1/12 в соответствии с приказом ДЖКХ от 29.12.2014 №55 \"Об осуществлении потребителями оплаты коммунальной услуги по отоплению\"\n"]
["Климатические зоны","I","I","II","II","II","II","II","III","III","III","IV","IV",null,null,null,"Климатические зоны","I","I","II","II","II","II","II","III","III","III","IV","IV"]
["Муниципальные районы, городские округа Томской области","Кожевниковский район, Шегарский район","Томский район, Город Томск, ЗАТО Северск","Первомайский район","Чаинский район","Бакчарский район","Молчановский район, Кривошеинский район","Асиновский район, Зырянский район, Тегульдетский район","Колпашевский район","Парабельский район, Город Кедровый","Верхнекетский район","Каргасокский район","Александровский район, городской округ Стрежевой",null,null,null,"Муниципальные районы, городские округа Томской области","Кожевниковский район, Шегарский район","Томский район, Город Томск, ЗАТО Северск","Первомайский район","Чаинский район","Бакчарский район","Молчановский район, Кривошеинский район","Асиновский район, Зырянский район, Тегульдетский район","Колпашевский район","Парабельский район, Город Кедровый","Верхнекетский район","Каргасокский район","Александровский район, городской округ Стрежевой"]
["Этажность","Норматив потребления коммунальной услуги по отоплению в жилых и нежилых помещениях в отопительный период",null,null,null,null,null,null,null,null,null,null,null,null,null,null,"Этажность","Норматив потребления коммунальной услуги по отоплению в жилых и нежилых помещениях в отопительный период"]
[null,"(Гкал на 1 кв. м общей площади всех жилых и нежилых помещений в многоквартирном доме или жилого дома в месяц)",null,null,null,null,null,null,null,null,null,null,null,null,null,null,null,"(Гкал на 1 кв. м общей площади всех жилых и нежилых помещений в многоквартирном доме или жилого дома в месяц)"]
[null,"Многоквартирные дома или жилые дома до 1999 года постройки включительно",null,null,null,null,null,null,null,null,null,null,null,null,null,null,null,"Многоквартирные дома или жилые дома до 1999 года постройки включительно"]
[1,3.3300000000000003E-2,3.4700000000000002E-2,3.4099999999999998E-2,3.39E-2,3.4500000000000003E-2,3.44E-2,3.5400000000000001E-2,3.7600000000000001E-2,3.5299999999999998E-2,3.5900000000000001E-2,3.6299999999999999E-2,3.7400000000000003E-2,null,null,null,1,4.4400000000000009E-2,4.6199999999999998E-2,4.5400000000000003E-2,4.5199999999999997E-2,4.6000000000000006E-2,4.5866666666666667E-2,4.7199999999999999E-2,5.0133333333333335E-2,4.7E-2,4.7800000000000002E-2,4.8399999999999999E-2,4.9799999999999997E-2]
[2,3.2599999999999997E-2,3.4299999999999997E-2,3.4099999999999998E-2,3.3500000000000002E-2,3.3399999999999999E-2,3.32E-2,3.6400000000000002E-2,4.1500000000000002E-2,3.6700000000000003E-2,3.6900000000000002E-2,3.6999999999999998E-2,3.8600000000000002E-2,null,null,null,2,4.3466666666666667E-2,4.5733333333333327E-2,4.5466666666666669E-2,4.4666666666666667E-2,4.4533333333333334E-2,4.4266666666666662E-2,4.8533333333333338E-2,5.5333333333333332E-2,4.8933333333333336E-2,4.9200000000000001E-2,4.9333333333333326E-2,5.1400000000000001E-2]
["3-4",2.0899999999999998E-2,2.1600000000000001E-2,2.12E-2,2.2499999999999999E-2,2.0899999999999998E-2,2.1000000000000001E-2,2.1700000000000001E-2,2.6499999999999999E-2,2.24E-2,2.0799999999999999E-2,2.4E-2,2.5100000000000001E-2,null,null,null,"3-4",2.7866666666666665E-2,2.8799999999999999E-2,2.8266666666666669E-2,3.0000000000000002E-2,2.7799999999999998E-2,2.8000000000000001E-2,2.8933333333333335E-2,3.5333333333333335E-2,2.98E-2,2.7733333333333332E-2,3.2000000000000001E-2,3.3399999999999999E-2]
["5-9",1.7899999999999999E-2,1.8499999999999999E-2,1.8499999999999999E-2,null,null,null,1.9400000000000001E-2,2.2200000000000001E-2,0.02,1.9699999999999999E-2,1.9E-2,2.35E-2,null,null,null,"5-9",2.3866666666666665E-2,2.4666666666666663E-2,2.4666666666666663E-2,null,null,null,2.5866666666666666E-2,2.9600000000000001E-2,2.6666666666666665E-2,2.6200000000000001E-2,2.5333333333333333E-2,3.1333333333333338E-2]
[10,null,1.8100000000000002E-2,null,null,null,null,null,null,null,null,null,2.23E-2,null,null,null,10,null,2.4133333333333333E-2,null,null,null,null,null,null,null,null,null,2.9733333333333334E-2]
[12,null,1.7899999999999999E-2,null,null,null,null,null,null,null,null,null,null,null,null,null,12,null,2.3800000000000002E-2]
[14,null,1.8599999999999998E-2,null,null,null,null,null,null,null,null,null,null,null,null,null,14,null,2.4799999999999999E-2]
["16 и более",null,2.0299999999999999E-2,null,null,null,null,null,null,null,null,null,null,null,null,null,"16 и более",null,2.7066666666666666E-2]
[]
["Этажность","Многоквартирные дома или жилые дома после 1999 года постройки",null,null,null,null,null,null,null,null,null,null,null,null,null,null,"Этажность","Многоквартирные дома или жилые дома после 1999 года постройки"]
[1,1.43E-2,1.46E-2,1.4999999999999999E-2,null,1.4800000000000001E-2,1.49E-2,1.4999999999999999E-2,null,1.55E-2,1.7600000000000001E-2,1.61E-2,1.67E-2,null,null,null,1,1.9E-2,1.9466666666666667E-2,0.02,null,1.9733333333333335E-2,1.9866666666666668E-2,0.02,null,2.0666666666666667E-2,2.3400000000000001E-2,2.1466666666666665E-2,2.2200000000000001E-2]
[2,1.2200000000000001E-2,1.3100000000000001E-2,1.3299999999999999E-2,null,1.5100000000000001E-2,1.2800000000000001E-2,null,null,null,null,1.49E-2,1.55E-2,null,null,null,2,1.6199999999999999E-2,1.7466666666666669E-2,1.7733333333333334E-2,null,2.0133333333333333E-2,1.7000000000000001E-2,null,null,null,null,1.9800000000000002E-2,2.06E-2]
[3,2.75E-2,1.3299999999999999E-2,1.4200000000000001E-2,null,null,null,1.5299999999999999E-2,null,null,null,null,1.52E-2,null,null,null,3,3.6600000000000001E-2,1.7733333333333334E-2,1.8933333333333333E-2,null,null,null,2.0399999999999998E-2,null,null,null,null,2.0199999999999999E-2]
["4-5",null,1.1599999999999999E-2,1.14E-2,null,null,null,1.34E-2,null,1.18E-2,null,1.46E-2,1.43E-2,null,null,null,"4-5",null,1.5466666666666665E-2,1.52E-2,null,null,null,1.7866666666666666E-2,null,1.5733333333333335E-2,null,1.9466666666666667E-2,1.9E-2]
["6-7",null,1.0800000000000001E-2,null,null,null,null,null,null,null,null,null,null,null,null,null,"6-7",null,1.44E-2]
[8,null,1.04E-2,null,null,null,null,null,null,null,null,null,null,null,null,null,8,null,1.38E-2]
[9,null,1.0699999999999999E-2,null,null,null,null,null,null,null,null,null,null,null,null,null,9,null,1.4200000000000001E-2]
[10,null,1.01E-2,null,null,null,null,null,null,null,null,null,1.1900000000000001E-2,null,null,null,10,null,1.34E-2,null,null,null,null,null,null,null,null,null,1.5800000000000002E-2]
[11,null,9.4999999999999998E-3,null,null,null,null,null,null,null,null,null,null,null,null,null,11,null,1.2666666666666666E-2]
["12 и более",null,1.01E-2,null,null,null,null,null,null,null,null,null,null,null,null,null,"12 и более",null,1.34E-2]

{"sheet":"Нормативы отопление бани","index":9,"n_rows":21,"n_cols":15,"rows_kept":21,"cut":false,"hidden":false,"merged":[[0,8,0,14],[1,8,1,14],[6,1,6,6],[6,9,6,14],[8,1,8,6],[8,9,8,14],[16,1,16,6],[16,9,16,14],[20,0,20,2],[20,8,20,10],[10,1,10,6],[10,9,10,14],[12,1,12,6],[12,9,12,14],[14,1,14,6],[14,9,14,14]]}
["НОРМАТИВЫ",null,null,null,null,null,null,null,"Нормативы потребления коммунальной услуги по отоплению при использовании земельного участка и надворных построек на территории Томской области согласно приложению № 9 к приказу Департамента ЖКХ и государственного жилищного надзора Томской области от 30.11.2012 № 47 \"Об утверждении нормативов потребления коммунальных услуг на территории Томской области\", пересчитанные на 1/12 для равномерной оплаты в течение года"]
["Список изменяющих документов",null,null,null,null,null,null,null,"Нормативы пересчитаны на потребление по 1/12 в соответствии с приказом ДЖКХ от 29.12.2014 №55 \"Об осуществлении потребителями оплаты коммунальной услуги по отоплению\"\n"]
[]
[]
["Климатические зоны","I","I","II","III","IV","IV",null,"Климатические зоны","I","I","II","III","IV","IV"]
["Муниципальные районы, городские округа Томской области","Кожевниковский район, Шегарский район","Томский район, Город Томск, ЗАТО Северск","Первомайский район, Чаинский район, Бакчарский район, Молчановский район, Кривошеинский район, Асиновский район, Зырянский район, Тегульдетский район","Колпашевский район, Парабельский район, Город Кедровый, Верхнекетский район","Каргасокский район","Александровский район, городской округ Стрежевой",null,"Муниципальные районы, городские округа Томской области","Кожевниковский район, Шегарский район","Томский район, Город Томск, ЗАТО Северск","Первомайский район, Чаинский район, Бакчарский район, Молчановский район, Кривошеинский район, Асиновский район, Зырянский район, Тегульдетский район","Колпашевский район, Парабельский район, Город Кедровый, Верхнекетский район","Каргасокский район","Александровский район, городской округ Стрежевой"]
["Направление использования коммунального ресурса","Норматив потребления в отопительный период (Гкал в месяц на 1 кв. м отапливаемых надворных построек, расположенных на земельном участке)",null,null,null,null,null,null,"Направление использования коммунального ресурса","Норматив потребления в отопительный период (Гкал в месяц на 1 кв. м отапливаемых надворных построек, расположенных на земельном участке)"]
["Отопление на кв. метр бань, расположенных на земельном участке",3.39E-2,3.3799999999999997E-2,3.4299999999999997E-2,3.5299999999999998E-2,3.6999999999999998E-2,3.6400000000000002E-2,null,"Отопление на кв. метр бань, расположенных на земельном участке",{"$f":"B8*9/12","v":2.5425E-2},2.5349999999999998E-2,2.5724999999999998E-2,2.6474999999999999E-2,2.7749999999999997E-2,2.7300000000000001E-2]
["Направление использования коммунального ресурса","Норматив потребления в отопительный период (Гкал в месяц на 1 кв. м отапливаемых надворных построек, расположенных на земельном участке) при наличии технической возможности установки индивидуальных приборов учета в жилых домах, расположенных на земельном участке с надворными постройками с 1 января 2015 г. по 30 июня 2015 г.",null,null,null,null,null,null,"Направление использования коммунального ресурса","Норматив потребления в отопительный период (Гкал в месяц на 1 кв. м отапливаемых надворных построек, расположенных на земельном участке) при наличии технической возможности установки индивидуальных приборов учета в жилых домах, расположенных на земельном участке с надворными постройками с 1 января 2015 г. по 30 июня 2015 г."]
["Отопление на кв. метр бань, расположенных на земельном участке",3.73E-2,3.7199999999999997E-2,3.7699999999999997E-2,3.8800000000000001E-2,4.07E-2,0.04,null,"Отопление на кв. метр бань, расположенных на земельном участке",{"$f":"B10*9/12","v":2.7975E-2},2.7899999999999998E-2,2.8274999999999998E-2,2.9100000000000001E-2,3.0525E-2,0.03]
["Направление использования коммунального ресурса","Норматив потребления в отопительный период (Гкал в месяц на 1 кв. м отапливаемых надворных построек, расположенных на земельном участке) при наличии технической возможности установки индивидуальных приборов учета в жилых домах, расположенных на земельном участке с надворными постройками с 1 июля 2015 г. по 31 декабря 2015 г.",null,null,null,null,null,null,"Направление использования коммунального ресурса","Норматив потребления в отопительный период (Гкал в месяц на 1 кв. м отапливаемых надворных построек, расположенных на земельном участке) при наличии технической возможности установки индивидуальных приборов учета в жилых домах, расположенных на земельном участке с надворными постройками с 1 июля 2015 г. по 31 декабря 2015 г."]
["Отопление на кв. метр бань, расположенных на земельном участке",4.07E-2,4.0599999999999997E-2,4.1200000000000001E-2,4.24E-2,4.4400000000000002E-2,4.3700000000000003E-2,null,"Отопление на кв. метр бань, расположенных на земельном участке",{"$f":"B12*9/12","v":3.0525E-2},3.0449999999999994E-2,3.09E-2,3.1800000000000002E-2,3.3300000000000003E-2,3.2775000000000006E-2]
["Направление использования коммунального ресурса","Норматив потребления в отопительный период (Гкал в месяц на 1 кв. м отапливаемых надворных построек, расположенных на земельном участке) при наличии технической возможности установки индивидуальных приборов учета в жилых домах, расположенных на земельном участке с надворными постройками с 1 января 2016 г. по 30 июня 2016 г.",null,null,null,null,null,null,"Направление использования коммунального ресурса","Норматив потребления в отопительный период (Гкал в месяц на 1 кв. м отапливаемых надворных построек, расположенных на земельном участке) при наличии технической возможности установки индивидуальных приборов учета в жилых домах, расположенных на земельном участке с надворными постройками с 1 января 2016 г. по 30 июня 2016 г."]
["Отопление на кв. метр бань, расположенных на земельном участке",4.7500000000000001E-2,4.7300000000000002E-2,4.8000000000000001E-2,4.9399999999999999E-2,5.1799999999999999E-2,5.0999999999999997E-2,null,"Отопление на кв. метр бань, расположенных на земельном участке",{"$f":"B14*9/12","v":3.5624999999999997E-2},3.5475E-2,3.5999999999999997E-2,3.705E-2,3.8850000000000003E-2,3.8249999999999999E-2]
["Направление использования коммунального ресурса","Норматив потребления в отопительный период (Гкал в месяц на 1 кв. м отапливаемых надворных построек, расположенных на земельном участке) при наличии технической возможности установки индивидуальных приборов учета в жилых домах, расположенных на земельном участке с надворными постройками с 1 июля 2016 г. по 31 декабря 2016 г.",null,null,null,null,null,null,"Направление использования коммунального ресурса","Норматив потребления в отопительный период (Гкал в месяц на 1 кв. м отапливаемых надворных построек, расположенных на земельном участке) при наличии технической возможности установки индивидуальных приборов учета в жилых домах, расположенных на земельном участке с надворными постройками с 1 июля 2016 г. по 31 декабря 2016 г."]
["Отопление на кв. метр бань, расположенных на земельном участке",5.0900000000000001E-2,5.0700000000000002E-2,5.1499999999999997E-2,5.2999999999999999E-2,5.5500000000000001E-2,5.4600000000000003E-2,null,"Отопление на кв. метр бань, расположенных на земельном участке",{"$f":"B16*9/12","v":3.8175000000000001E-2},3.8025000000000003E-2,3.8625E-2,3.9750000000000001E-2,4.1625000000000002E-2,4.095E-2]
["Направление использования коммунального ресурса","Норматив потребления в отопительный период (Гкал в месяц на 1 кв. м отапливаемых надворных построек, расположенных на земельном участке) при наличии технической возможности установки индивидуальных приборов учета в жилых домах, расположенных на земельном участке с надворными постройками с 2017 г.",null,null,null,null,null,null,"Направление использования коммунального ресурса","Норматив потребления в отопительный период (Гкал в месяц на 1 кв. м отапливаемых надворных построек, расположенных на земельном участке) при наличии технической возможности установки индивидуальных приборов учета в жилых домах, расположенных на земельном участке с надворными постройками с 2017 г."]
["Отопление на кв. метр бань, расположенных на земельном участке",5.4199999999999998E-2,5.4100000000000002E-2,5.4899999999999997E-2,5.6500000000000002E-2,5.9200000000000003E-2,5.8200000000000002E-2,null,"Отопление на кв. метр бань, расположенных на земельном участке",{"$f":"B18*9/12","v":4.0649999999999999E-2},4.0575E-2,4.1174999999999996E-2,4.2375000000000003E-2,4.4400000000000002E-2,4.3650000000000001E-2]
[]
["Примечание."]
["Продолжительность отопительного периода равна девяти месяцам календарного года (январь, февраль, март, апрель, май, сентябрь, октябрь, ноябрь, декабрь)."]